Workbook

Sheet Instructions
A1: Project Name: | C1: Reclaim Model - Overview of Program
B2: Hope Bay Doris Madrid Sec | C2: All users are urged to read the Reclaim Model User Manual - Scroll down for overview description of program.
C3: Important! Reclaim 7.0 works better with no other excel files open.
C4: If other excel files are open ignore run time error and proceed
A5: Reclaim Menu | C5: The default Excel menu bar has an additional tab labelled "Add-Ins" that provides options specific to the Reclaim Model.
B6: Clear | C6: This option deletes all input data, deletes any duplicated elements and blanks out the project name. It also allows for segregation into land costs vs water costs if required.
B7: Duplicate | C7: This option Duplicates components of the project. E.g. if there is more than one Open Pit, use duplicate to add a second Open Pit. Quantities for the new Open Pit are erased, but the Activities and Cost Codes are carried over from the original Open Pit. The new Open Pit subtotal is added to the Summary page.
B8: Unit Costs | C8: This option opens a window of unit costs to provide easy reference. NOTE: the unit cost table has a filter in the 'UNITS' column. You can select to only see a particular unit (eg km) or multiple units (km and m3) or all units.
B9: Print All | C9: This option prints the Summary Worksheet, Unit Cost Worksheet, and the individual component worksheets having non-zero balances. Individual worksheets can be printed directly using standard printing methods, such as Ctl - P.
B10: Quit | C10: Select Quit to exit the program
B11: Help | C11: Redirects user to Instructions worksheet.
A13: WorkSheets
B14: Summary | C14: This worksheet contains a cumulative summary of costs for each component of the project. Associated costs such as engineering and project management are added as a percentage of the component costs.
B15: Components | C15: Costs are derived for individual closure and reclamation activities by multiplying a "quantity" of activity by a "unit cost". An activity can be edited, added, or deleted from worksheet. However, care should be taken not to modify cells that are defined and used elsewhere in the program.
C16: Do not change the content or column width of the first column of each component worksheet.
B17: Unit Costs | C17: This worksheet contains a look up table with costs for typical work associated with each closure and reclamation activity
A19: Limitations | C19: The Reclaim Program will NOT work if the worksheets are changed such that the following requirements are not met. Please review the following prior to modifiying worksheets.
B20: WorkSheet Names | C20: The names of the worksheets must not be changed.
B21: Defined Names | C21: Certain cells have defined names, which must not be changed. Where the cell is named, the name will appear in the "Name Box" to the left of the formula bar.
B22: First line of data | C22: The first line of data for any component worksheet starts on line 4. Do not change the first line of a component worksheet, ie the component name.
B23: Cell A1 | C23: Cell A1 on the component sheet MUST always contain the count of that component for the duplicate function to operate. DO NOT CHANGE.
B24: Adding Lines | C24: You can add lines to components and the unit cost table, as long as they are not the last lines. The last line might fall outside the named ranges. You can check the size of the named range by selecting the name from the drop down box at the top left of the sheet. Usually this box has a cell reference, or a name.
B25: Printing | C25: A component will only be printed if its sub-total is greater than zero. In addition, a component and the summary sheet cannot be printed if there is an error. Printing has been set to print 1 page per component.
A27: Conditions of Use | C27: The Reclamation Cost Estimating Model was prepared to serve as a guide for Government Agencies, mining companies, and others to estimate the cost of mine reclamation. This model is not intended to replace reclamation planning or to be used to determine the activities required to reclaim a site or to dictate how much should be spent on reclamation.
C29: Reclaim was prepared by Brodie Consulting Ltd. on behalf of AANDC. AANDC and Brodie Consulting Ltd. are not responsible for the completeness or accuracy of any reclamation estimate made using this model. The user agrees to check and take responsibility for all aspects of any cost estimate made using this model.
A31: The following table provides guidance as to whether water management and treatment is considered short term or long term. Short term closure activities
A32: may be costed within a component (eg 'Open Pit' or 'Rock Pile') or 'Water Management'. Long term or post-closure water treatment is costed in 'Water Treatment'.
A33: and included in "Post-closure Monitoring and Maintenance".
D34: Short Term/ Capital Ex. | E34: Long term
A35: Open Pit | C35: flood pit - install/operate pumping system | D35: x
C36: construct diversion ditches | D36: x
C37: treat 1st filling | D37: x
C38: install pump/decant system | D38: x
C39: passive/biological treatment | D39: x
C40: overflow treatment | E40: x
A41: Rock Pile/Heap Leach Facility | C41: construct diversion ditches | D41: x
C42: install groundwater collection system | D42: x
C43: install toe seepage collection system | D43: x
C44: collect and treat groundwater | E44: x
C45: collect and treat seepage (ARD/ML) | E45: x
C46: install passive treatment system | D46: x
C47: operate and maintain passive treatment system | E47: x
C48: operate pump and detoxify heap leach pile (cyanide destruction) | D48: x
A49: Tailings Facility | C49: construct diversion ditches | D49: x
C50: pump supernatant (to pit, U/G) | D50: x
C51: treat supernatant | D51: x
C52: install toe seepage collection system | D52: x
C53: collect and treat seepage (ARD/ML) | E53: x
C54: install passive treatment system | D54: x
C55: operate and maintain passive treatment system | E55: x
A56: U/G Mine | C56: accelerate flooding | D56: x
C57: install seepage collection system | D57: x
C58: install dewatering/pumping system | D58: x
C59: operate seepage/dewatering system (ARD/ML) | E59: x
A60: Water Management | C60: refill lakes
C61: redirect creeks/streams | D61: x
C62: stabilize water management ponds | D62: x
C63: stabilize/close sediment ponds | D63: x
C64: fresh water supply - breach embankment | D64: x
C65: fresh water supply - remove piping system | D65: x
C66: construct water treatment plant | D66: x
C67: construct sludge pond | D67: x
C68: water control in reclamation quarry | D68: x
C69: operate/maintain water treatment plant | E69: x

Sheet Tools
A1: The functions in this worksheet serve as a back up in the event that the menu item "Add-Ins" is not shown in Excel menu bar
C4: Save file before clearing all data
L6: These functions duplicate components within worksheet
C9: Shows both active worksheet as well as table of Unit Costs in a separate window
C12: Prints all worksheets having non-zero sums

Sheet Summary
B1: SUMMARY OF COSTS
A3: CAPITAL COSTS | B3: COMPONENT NAME | D3: COST | F3: LAND LIABILITY | H3: WATER LIABILITY
A4: OPEN PIT | B4: =IF(ISBLANK('Open Pit'!$B$1),"",'Open Pit'!$B$1) -> Quarry ROQ Drill, Blast, and Crush Material | D4: =Pit1Total -> 4190607.775 | F4: =Pit1LandTotal -> 4190607.775 | H4: =Pit1WaterTotal -> 0
A5: UNDERGROUND MINE | B5: =IF(ISBLANK('UG Mine'!$B$1),"",'UG Mine'!$B$1) -> Doris Portal and Underground Works | D5: =UG1Total -> 3344311.368 | F5: =UG1LandTotal -> 3344311.368 | H5: =UG1WaterTotal -> 0
A6: TAILINGS FACILITY | B6: =IF(ISBLANK(Tailings!$B$1),"",Tailings!$B$1) -> TIA Subaerial Tailings Area, North Dam, Shoreline Protection, and Interim Dyke | D6: =Tailings1Total -> 12561086.36 | F6: =Tailings1LandTotal -> 6280543.182 | H6: =Tailings1WaterTotal -> 6280543.182
A7: ROCK PILE | B7: =IF(ISBLANK('Rock Pile'!$B$1),"",'Rock Pile'!$B$1) -> Doris, Madrid, Roberts Bay Rock Piles | D7: =RP1Total -> 1398358.776 | F7: =RP1LandTotal -> 1398358.776 | H7: =RP1WaterTotal -> 0
A8: BUILDINGS AND EQUIPMENT | B8: =IF(ISBLANK('Bldgs & Equip'!$B$1),"",'Bldgs & Equip'!$B$1) -> Site Buildings | D8: =Bldg1Total -> 10727366.1 | F8: =Bldg1LandTotal -> 8863055.785 | H8: =Bldg1WaterTotal -> 1864310.319
A9: CHEMICALS AND CONTAMINATED SOIL MANAGEMENT | B9: =IF(ISBLANK(Chemicals!$B$1),"",Chemicals!$B$1) -> Decontaminate Oil, Fuel, and Containment Liners | D9: =Chem1Total -> 1625660.523 | F9: =Chem1LandTotal -> 812830.2616 | H9: =Chem1WaterTotal -> 812830.2616
A10: SURFACE AND GROUNDWATER MANAGEMENT | B10: =IF(ISBLANK('Water Treatment'!$B$1),"",'Water Treatment'!$B$1) -> Remove / Level Berms, Water Management , Water Treatment | D10: =Water1Total -> 1126649.187 | F10: - | H10: =Water1Total -> 1126649.187
A11: INTERIM CARE AND MAINTENANCE | B11: =IF(ISBLANK(ICM!$B$1),"",ICM!$B$1) -> Two (2) Years of Care and Maintenance and Includes Water Treatment | D11: =ICMTotal -> 7111287.025 | F11: - | H11: =ICMTotal -> 7111287.025
B12: SUBTOTAL: Capital Costs | D12: =SUM(D4:D11) -> 42085327.12 | F12: =SUM(F4:F11) -> 24889707.15 | H12: =SUM(H4:H11) -> 17195619.97
B13: PERCENT OF SUBTOTAL | F13: =IF(F12<0.01,0,F12/D12) -> 0.5914105663 | H13: =IF(H12<0.01,0,H12/D12) -> 0.4085894337
A15: INDIRECT COSTS | D15: COST | F15: LAND LIABILITY | H15: WATER LIABILITY
A16: MOBILIZATION/DEMOBILIZATION | B16: =IF(ISBLANK(Mobilization!$B$1),"",Mobilization!$B$1) ->  | D16: =MobTotal -> 7955000 | F16: =D16*$F$13 -> 4704671.055 | H16: =D16*$H$13 -> 3250328.945
A17: POST-CLOSURE MONITORING AND MAINTENANCE | B17: =IF(ISBLANK(PostClosure!$B$1),"",PostClosure!$B$1) ->  | D17: =PC1Total -> 1225000 | F17: =D17*$F$13 -> 724477.9438 | H17: =D17*$H$13 -> 500522.0563
A18: ENGINEERING | B18: 0.05 | D18: =B18*$D$12 -> 2104266.356 | F18: =+$F$13*D18 -> 1244485.357 | H18: =+$H$13*D18 -> 859780.9987
A19: PROJECT MANAGEMENT | B19: 0.05 | D19: 2104266.356 | F19: 1244485.357 | H19: 859780.9987
A20: HEALTH AND SAFETY PLANS/MONITORING & QA/QC | B20: 0 | D20: 0 | F20: 0 | H20: 0
A21: BONDING/INSURANCE | B21: 0 | D21: 0 | F21: 0 | H21: 0
A22: CONTINGENCY | B22: 0.2 | D22: 8417065.425 | F22: 4977941.43 | H22: 3439123.995
A23: MARKET PRICE FACTOR ADJUSTMENT | B23: 0 | D23: 0 | F23: 0 | H23: 0
B24: SUBTOTAL: Indirect Costs | D24: =SUM(D16:D23) -> 21805598.14 | F24: =SUM(F16:F23) -> 12896061.14 | H24: =SUM(H16:H23) -> 8909536.993
A26: TOTAL COSTS | D26: =D12+D24 -> 63890925.26 | F26: =F12+F24 -> 37785768.29 | H26: =H12+H24 -> 26105156.97

Sheet Open Pit
A1: Open Pit Name: | B1: Quarry ROQ Drill, Blast, and Crush Material | F1: Pit # | G1: 1
A3: ACTIVITY/MATERIAL | B3: Notes | C3: Units | D3: Quantity | E3: Cost Code | F3: Unit Cost | G3: Cost | H3: % Land | I3: Land Cost | J3: Water Cost | K3: Comments
A4: NO REQUIREMENT
A5: DW_002 Doris-Windy All Weather Road Quarry A | B5: No closure activities are required | C5: each | F5: 0 | G5: =D5*F5 -> 0 | I5: =G5*H5 -> 0 | J5: =G5*(1-H5) -> 0
A6: DW_003 Doris-Windy All Weather Road Quarry B | B6: No closure activities are required | C6: each | F6: 0 | G6: =D6*F6 -> 0 | I6: =G6*H6 -> 0 | J6: =G6*(1-H6) -> 0
A7: DW_007 Doris-Windy All Weather Road Quarry D | B7: No closure activities are required | C7: each | F7: 0 | G7: 0 | I7: 0 | J7: 0
A8: Q2_001 Quarry 2 Quarry | B8: No closure activities are required | C8: each | F8: 0 | G8: 0 | I8: 0 | J8: 0
A9: Q3_001 Quarry 3 Quarry #3 | B9: No closure activities are required | C9: each | F9: 0 | G9: 0 | I9: 0 | J9: 0
A10: QUARRY ROCK MATERIAL
A11: TIA_001 TIA Subaerial Tailings Area | B11: Produce ROQ (Quarry, drill &blast) | C11: m3 | D11: 104250 | E11: RB2L | F11: 16.300035 | G11: =D11*F11 -> 1699278.649 | H11: 1 | I11: =G11*H11 -> 1699278.649 | J11: =+G11*(1-H11) -> 0
A12: TIA_001 TIA Subaerial Tailings Area | B12: Produce additional ROQ for drainage channel armoring | C12: m3 | D12: 8240.228977 | E12: RB2L | F12: 16.300035 | G12: 134316.0207 | H12: 1 | I12: =G12*H12 -> 134316.0207 | J12: =+G12*(1-H12) -> 0
A13: Q3_003 Quarry 3 Landfill | B13: Produce ROQ (Quarry, drill &blast) | C13: m3 | D13: 8124.3 | E13: RB2L | F13: 16.300035 | G13: 132426.3744 | H13: 1 | I13: 132426.3744 | J13: 0
A14: MN_026 Naartok Crown Recovery Trench | B14: Produce ROQ (Quarry, drill &blast) | C14: m3 | D14: 86089 | E14: RB2L | F14: 16.300035 | G14: 1403253.713 | H14: 1 | I14: =G14*H14 -> 1403253.713 | J14: =+G14*(1-H14) -> 0
A15: MN_026 Naartok Crown Recovery Trench | B15: Produce ROQ (Quarry, drill &blast) | C15: m3 | D15: 4082 | E15: RB2L | F15: 16.300035 | G15: 66536.74287 | H15: 1 | I15: =G15*H15 -> 66536.74287 | J15: =+G15*(1-H15) -> 0
A16: MN_026 Naartok Crown Recovery Trench | B16: Produce Crushed Rock (Quarry, drill &blast) | C16: m3 | D16: 1548 | E16: RB2L | F16: 16.300035 | G16: 25232.45418 | H16: 1 | I16: =G16*H16 -> 25232.45418 | J16: =+G16*(1-H16) -> 0
A17: TIA_001 TIA Subaerial Tailings Area | B17: Crush and Screen ROQ Materials | C17: m3 | D17: 8240.228977 | E17: RBS1L | F17: 6.75 | G17: 55621.5456 | H17: 1 | I17: 55621.5456 | J17: 0
A18: Q3_003 Quarry 3 Landfill | B18: Crush and Screen ROQ Materials | C18: m3 | D18: 8124.3 | E18: RBS1L | F18: 6.75 | G18: 54839.025 | H18: 1 | I18: 54839.025 | J18: 0
A19: MN_026 Naartok Crown Recovery Trench | B19: Crush and Screen ROQ Materials | C19: m3 | D19: 86089 | E19: RBS1L | F19: 6.75 | G19: 581100.75 | H19: 1 | I19: =G19*H19 -> 581100.75 | J19: =+G19*(1-H19) -> 0
A20: MN_026 Naartok Crown Recovery Trench | B20: Crush and Screen ROQ Materials | C20: m3 | D20: 4082 | E20: RBS1L | F20: 6.75 | G20: 27553.5 | H20: 1 | I20: 27553.5 | J20: 0
A21: MN_026 Naartok Crown Recovery Trench | B21: Crush and Screen Crushed Rock Materials | C21: m3 | D21: 1548 | E21: RBS1L | F21: 6.75 | G21: 10449 | H21: 1 | I21: =G21*H21 -> 10449 | J21: =+G21*(1-H21) -> 0
A22: CONTROL ACCESS
A23: Fence | C23: m | F23: 0 | G23: =D23*F23 -> 0 | I23: =G23*H23 -> 0 | J23: =G23*(1-H23) -> 0
A24: Signs | C24: each | F24: 0 | G24: 0 | I24: =G24*H24 -> 0 | J24: =G24*(1-H24) -> 0
A25: Berm at crest | C25: m3 | F25: 0 | G25: 0 | I25: 0 | J25: 0
A26: Block roads | C26: m3 | F26: 0 | G26: 0 | I26: 0 | J26: 0
A27: Other | F27: 0 | G27: 0 | I27: =G27*H27 -> 0 | J27: =G27*(1-H27) -> 0
A28: STABILITY STUDY
A29: Conduct stability and setback study | C29: allow | F29: 0 | G29: =D29*F29 -> 0 | I29: =G29*H29 -> 0 | J29: =G29*(1-H29) -> 0
A30: STABILIZE SLOPES
A31: Off-load crest, soil A | C31: m3 | F31: 0 | G31: =D31*F31 -> 0 | I31: 0 | J31: 0
A32: Off-load crest, soil B | C32: m3 | F32: 0 | G32: 0 | I32: 0 | J32: 0
A33: Doze/trim overburden at crest | C33: m3 | F33: 0 | G33: 0 | I33: 0 | J33: 0
A34: Drill & blast pit crest | C34: m3 | F34: 0 | G34: 0 | I34: 0 | J34: 0
A35: Buttress slope | C35: m3 | F35: 0 | G35: 0 | I35: 0 | J35: 0
A36: Other | F36: 0 | G36: 0 | I36: 0 | J36: 0
A37: COVER/CONTOUR SLOPES
A38: Place fill, soil A | C38: m3 | F38: 0 | G38: =D38*F38 -> 0 | I38: 0 | J38: 0
A39: Place fill, soil B | C39: m3 | F39: 0 | G39: 0 | I39: 0 | J39: 0
A40: Rip rap | C40: m3 | F40: 0 | G40: 0 | I40: 0 | J40: 0
A41: Vegetate slopes | C41: ha | F41: 0 | G41: 0 | I41: 0 | J41: 0
A42: Vegetate pit floor | C42: ha | F42: 0 | G42: 0 | I42: 0 | J42: 0
A43: Other | F43: 0 | G43: 0 | I43: 0 | J43: 0
A44: CONSTRUCT DIVERSION DITCHES
A45: Excavate ditches -soil | C45: m3 | F45: 0 | G45: =D45*F45 -> 0 | I45: =G45*H45 -> 0 | J45: =G45*(1-H45) -> 0
A46: Excavate ditches -rock | C46: m3 | F46: 0 | G46: 0 | I46: =G46*H46 -> 0 | J46: =G46*(1-H46) -> 0
A47: Rip rap in channel base | C47: m3 | F47: 0 | G47: 0 | I47: =G47*H47 -> 0 | J47: =G47*(1-H47) -> 0
A48: CONSTRUCT SPILLWAY
A49: Excavate channel | C49: m3 | F49: 0 | G49: =D49*F49 -> 0 | I49: 0 | J49: 0
A50: Concrete | C50: m3 | F50: 0 | G50: 0 | I50: 0 | J50: 0
A51: Rip rap | C51: m3 | F51: 0 | G51: 0 | I51: 0 | J51: 0
A52: Other | F52: 0 | G52: 0 | I52: 0 | J52: 0
A53: RECLAIM QUARRIES
A54: Re-contour
A55: Contour slopes | C55: m3 | F55: 0 | G55: =D55*F55 -> 0 | I55: =G55*H55 -> 0 | J55: =G55*(1-H55) -> 0
A56: Place overburden | C56: m3 | F56: 0 | G56: 0 | I56: =G56*H56 -> 0 | J56: =G56*(1-H56) -> 0
A57: Vegetate | C57: m3 | F57: 0 | G57: 0 | I57: =G57*H57 -> 0 | J57: =G57*(1-H57) -> 0
A58: FLOOD PIT-Capital
A59: Remove stationary equipment (sump pumps) | C59: each | F59: 0 | G59: =D59*F59 -> 0 | I59: 0 | J59: 0
A60: Remove dewatering pipeline | C60: m | F60: 0 | G60: 0 | I60: =G60*H60 -> 0 | J60: =G60*(1-H60) -> 0
A61: Remove power lines | C61: each | F61: 0 | G61: 0 | I61: 0 | J61: 0
A62: Construct diversion ditches | C62: m3 | F62: 0 | G62: 0 | I62: =G62*H62 -> 0 | J62: =G62*(1-H62) -> 0
A63: -Ditch, mat'l A | C63: m3 | F63: 0 | G63: 0 | I63: =G63*H63 -> 0 | J63: =+G63*(1-H63) -> 0
A64: -Ditch, mat'l B | C64: m3 | F64: 0 | G64: 0 | I64: =G64*H64 -> 0 | J64: =+G64*(1-H64) -> 0
A65: Construct embankment/dam | C65: m3 | F65: 0 | G65: 0 | I65: 0 | J65: 0
A66: Supply/install pump station | C66: each | F66: 0 | G66: 0 | I66: 0 | J66: 0
A67: Supply/install piping system | C67: m | F67: 0 | G67: 0 | I67: =G67*H67 -> 0 | J67: =G67*(1-H67) -> 0
A68: Remove pump post-closure | C68: each | F68: 0 | G68: 0 | I68: =G68*H68 -> 0 | J68: =G68*(1-H68) -> 0
A69: Remove pipeline post-closure | C69: m | F69: 0 | G69: 0 | I69: =G69*H69 -> 0 | J69: =G69*(1-H69) -> 0
A70: FLOOD PIT-Annual Cost
A71: Operate pumps (power) | C71: m3 | F71: 0 | G71: =D71*F71 -> 0 | I71: 0 | J71: 0
A72: Maintain pump/pipeline | C72: allow | F72: 0 | G72: 0 | I72: =G72*H72 -> 0 | J72: =G72*(1-H72) -> 0
A73: Labour: fuel management, commissioning/decom | C73: $/h | F73: 0 | G73: 0 | I73: =G73*H73 -> 0 | J73: =G73*(1-H73) -> 0
A74: Chemical addition, _____ kg/m3 of water | C74: tonne | F74: 0 | G74: 0 | I74: 0 | J74: 0
A75: Chemicals, purchase and shipping | C75: tonne | F75: 0 | G75: 0 | I75: 0 | J75: 0
A76: Passive/biological additives | C76: $/ha | F76: 0 | G76: 0 | I76: =G76*H76 -> 0 | J76: =G76*(1-H76) -> 0
A77: Passive additives purchase and shipping | C77: tonne | F77: 0 | G77: 0 | I77: =G77*H77 -> 0 | J77: =G77*(1-H77) -> 0
A78: Other | F78: 0 | G78: 0 | I78: =G78*H78 -> 0 | J78: 0
F79: Annual pumping costs | G79: =SUM(G71:G78)+0.0001 -> 0.0001
A80: Number of years of pump flooding | C80: years
F81: Total pumping costs | G81: =G79*D80 -> 0 | I81: =G81*H81 -> 0 | J81: =G81*(1-H81) -> 0
F82: Total | G82: =SUM(G4:G69)+G81+0.0001 -> 4190607.775 | I82: =SUM(I4:I69)+I81 -> 4190607.775 | J82: =SUM(J4:J69)+J81 -> 0
F83: % of Total | I83: =I82/G82 -> 1 | J83: =J82/G82 -> 0

Sheet UG Mine
A1: Underground Mine Name | B1: Doris Portal and Underground Works | F1: UG Mine # | G1: 1
A3: ACTIVITY/MATERIAL | B3: Notes | C3: Unit | D3: Quantity | E3: Cost Code | F3: Unit Cost | G3: Cost | H3: % Land | I3: Land Cost | J3: Water Cost | K3: Comments
A4: CONTROL ACCESS
A5: Fence | C5: m | F5: 0 | G5: =D5*F5 -> 0 | I5: =G5*H5 -> 0 | J5: =G5*(1-H5) -> 0
A6: Signs | C6: each | F6: 0 | G6: =D6*F6 -> 0 | I6: =G6*H6 -> 0 | J6: =G6*(1-H6) -> 0
A7: Block roads | C7: m3 | F7: 0 | G7: 0 | I7: 0 | J7: 0
A8: Berm | C8: m3 | F8: 0 | G8: 0 | I8: 0 | J8: 0
A9: Concrete wall in portals | C9: m3 | F9: 0 | G9: 0 | I9: =G9*H9 -> 0 | J9: =G9*(1-H9) -> 0
A10: Backfill portal | C10: m3 | F10: 0 | G10: 0 | I10: 0 | J10: 0
A11: DM_012 Doris Portal and Underground Works | B11: Construct portal plug | C11: m3 | D11: 706.8 | E11: PORL | F11: 25.43076 | G11: 17974.46117 | H11: 1 | I11: =G11*H11 -> 17974.46117 | J11: =G11*(1-H11) -> 0 | K11: assume no change
A12: DM_012 Doris Portal and Underground Works | B12: Backfill underground workings with ore and waste rock on surface at Doris | C12: m3 | D12: 360889 | E12: RBS2L | F12: 8.5 | G12: 3067556.5 | H12: 1 | I12: 3067556.5 | J12: 0 | K12: AEM - Monthly Mine Backfill and Waste Rock Stockpile Management Report (Dec 2022)
A13: MN_012 Madrid North Portal and Underground Works | B13: Construct portal plug | C13: m3 | D13: 1338 | E13: PORL | F13: 25.43076 | G13: 34026.35688 | H13: 1 | I13: =G13*H13 -> 34026.35688 | J13: =G13*(1-H13) -> 0 | K13: DXF file: Naartok_West_asbuilt_decline.dxf provided by Patrick Baker Jan 24 2023
A14: Backfill portal #2 | C14: m3 | F14: 0 | G14: 0 | I14: 0 | J14: 0
A15: Cap raise | C15: m3 | F15: 0 | G15: 0 | I15: 0 | J15: 0
A16: DM_030 Doris Primary Vent Raise | B16: Construct a concrete cap (0.5 m thick reinforced concrete) to seal the top | C16: m3 | D16: 25.12 | E16: CLFS | F16: 2881.251 | G16: 72377.02512 | H16: 1 | I16: =G16*H16 -> 72377.02512 | J16: =G16*(1-H16) -> 0 | K16: Assume 4m Diameter, 0.5m Thick
A17: DM_033 Doris Connector Vent Raise | B17: Construct a concrete cap (0.5 m thick reinforced concrete) to seal the top | C17: m3 | D17: 25.12 | E17: CLFS | F17: 2881.251 | G17: 72377.02512 | H17: 1 | I17: =G17*H17 -> 72377.02512 | J17: =G17*(1-H17) -> 0 | K17: Assume 4m Diameter, 0.5m Thick
A18: Cap raise #2 | C18: m3 | F18: 0 | G18: 0 | I18: 0 | J18: 0
A19: Cap shaft #1 | C19: m3 | F19: 0 | G19: 0 | I19: 0 | J19: 0
A20: Cap shaft #2 | C20: m3 | F20: 0 | G20: 0 | I20: 0 | J20: 0
A21: Backfill adits | C21: m3 | F21: 0 | G21: 0 | I21: =G21*H21 -> 0 | J21: =G21*(1-H21) -> 0
A22: Backfill open stope | C22: m3 | F22: 0 | G22: 0 | I22: 0 | J22: 0
A23: Concrete cap over open stope | C23: m3 | F23: 0 | G23: 0 | I23: 0 | J23: 0
A24: Other | F24: 0 | G24: 0 | I24: 0 | J24: 0
A25: REMOVE HAZARDOUS MATERIALS
A26: Remove hazardous materials, U/G labor | C26: mandays | F26: 0 | G26: =D26*F26 -> 0 | I26: =G26*H26 -> 0 | J26: =G26*(1-H26) -> 0
A27: Remove/decontaminate stationary & elect. equip | C27: lm | F27: 0 | G27: 0 | I27: 0 | J27: 0
A28: DM_012 Doris Portal and Underground Works | B28: Remove ducts, pipes, cables | C28: lm | D28: 100 | E28: PDCS1L | F28: 200 | G28: 20000 | H28: 1 | I28: 20000 | J28: 0
A29: DM_030 Doris Primary Vent Raise | B29: Remove ducts, pipes, cables | C29: lm | D29: 100 | E29: PDCS1L | F29: 200 | G29: 20000 | H29: 1 | I29: 20000 | J29: 0
A30: DM_033 Doris Connector Vent Raise | B30: Remove ducts, pipes, cables | C30: lm | D30: 100 | E30: PDCS1L | F30: 200 | G30: 20000 | H30: 1 | I30: 20000 | J30: 0
A31: MN_012 Madrid North Portal and Underground Works | B31: Remove ducts, pipes, cables | C31: lm | D31: 100 | E31: PDCS1L | F31: 200 | G31: 20000 | H31: 1 | I31: 20000 | J31: 0
A32: Remove/decontaminate mobile equipment | C32: each | F32: 0 | G32: 0 | I32: 0 | J32: 0
A33: Remove misc. haz. mat & explosives | C33: kg | F33: 0 | G33: 0 | I33: 0 | J33: 0
A34: Other | F34: 0 | G34: 0 | I34: 0 | J34: 0
A35: INSTALL BULKHEADS | G35: 0
A36: Bulkheads to control water flow | C36: each | F36: 0 | G36: 0 | I36: =G36*H36 -> 0 | J36: =G36*(1-H36) -> 0
A37: Grout bulkhead | C37: m3 | F37: 0 | G37: 0 | I37: =G37*H37 -> 0 | J37: =G37*(1-H37) -> 0
A38: FLOOD MINE | G38: 0
A39: Supply/install pump | C39: each | F39: 0 | G39: 0 | I39: 0 | J39: 0
A40: Supply/install piping system | C40: each | F40: 0 | G40: 0 | I40: =G40*H40 -> 0 | J40: =G40*(1-H40) -> 0
A41: Operate pumps to flood workings | C41: m3 | F41: 0 | G41: 0 | I41: 0 | J41: 0
A42: Other | F42: 0 | G42: 0 | I42: 0 | J42: 0
A43: INSTALL GROUNDWATER COLLECTION SYSTEM | G43: 0
A44: Excavate/install sumps | C44: m2 | F44: 0 | G44: 0 | I44: =G44*H44 -> 0 | J44: =+G44*(1-H44) -> 0
A45: Install pumping wells | C45: m3 | F45: 0 | G45: 0 | I45: =G45*H45 -> 0 | J45: =+G45*(1-H45) -> 0
A46: Install pumps/pipelines/power supply | C46: LS | F46: 0 | G46: 0 | I46: =G46*H46 -> 0 | J46: =+G46*(1-H46) -> 0
A47: SPECIALIZED ITEMS | G47: 0
A48: Install water quality monitoring pipes | C48: each | F48: 0 | G48: 0 | I48: =G48*H48 -> 0 | J48: 0
A49: Install permanent pumping system | C49: each | F49: 0 | G49: 0 | I49: =G49*H49 -> 0 | J49: 0
A50: Other | F50: 0 | G50: 0 | I50: =G50*H50 -> 0 | J50: 0
F51: Total | G51: =SUM(G5:G50)+0.0001 -> 3344311.368 | I51: =SUM(I5:I50) -> 3344311.368 | J51: =SUM(J5:J50) -> 0
F52: % of Total | I52: =I51/G51 -> 1 | J52: =J51/G51 -> 0

Sheet Tailings
A1: Tailings Impoundment Name: | B1: TIA Subaerial Tailings Area, North Dam, Shoreline Protection, and Interim Dyke | F1: Pond # | G1: 1
A3: ACTIVITY/MATERIAL | B3: Notes | C3: Unit | D3: Quantity | E3: Cost Code | F3: Unit Cost | G3: Cost | H3: % Land | I3: Land Cost | J3: Water Cost | K3: Comments
A4: CONTROL ACCESS
A5: Fence | C5: m | F5: 0 | G5: =D5*F5 -> 0 | H5: 0 | I5: =G5*H5 -> 0 | J5: =+G5*(1-H5) -> 0
A6: Signs | C6: each | F6: 0 | G6: =D6*F6 -> 0 | H6: 0 | I6: =G6*H6 -> 0 | J6: =+G6*(1-H6) -> 0
A7: Berm | C7: m3 | F7: 0 | G7: =D7*F7 -> 0 | H7: 0 | I7: =G7*H7 -> 0 | J7: =+G7*(1-H7) -> 0
A8: Block roads | C8: m3 | F8: 0 | G8: =D8*F8 -> 0 | H8: 0 | I8: =G8*H8 -> 0 | J8: =+G8*(1-H8) -> 0
A9: Other | F9: 0 | G9: =D9*F9 -> 0 | H9: 0 | I9: =G9*H9 -> 0 | J9: =+G9*(1-H9) -> 0
A10: STABILIZE EMBANKMENT(S)
A11: Toe buttress, drainage layer | C11: m3 | F11: 0 | G11: =D11*F11 -> 0 | H11: 0 | I11: =G11*H11 -> 0 | J11: =+G11*(1-H11) -> 0
A12: Toe buttress, bulk fill | C12: m3 | F12: 0 | G12: 0 | H12: 0 | I12: 0 | J12: 0
A13: Rip rap | C13: m3 | F13: 0 | G13: 0 | H13: 0 | I13: 0 | J13: 0
A14: TIA_005 TIA Shoreline Protection | B14: Haul and place riprap to prevent erosion | C14: m3 | D14: 204959 | E14: RR4L | F14: 10.28052 | G14: 2107085.099 | H14: 0.5 | I14: 1053542.549 | J14: 1053542.549
A15: Install geotextile/geosynthetic | C15: m2 | F15: 0 | G15: 0 | H15: 0 | I15: 0 | J15: 0
A16: TIA_005 TIA Shoreline Protection | B16: Install separation geotextile | C16: m2 | D16: 409918 | E16: GSHDPEL | F16: 10.753965 | G16: 4408243.825 | H16: 0.5 | I16: =G16*H16 -> 2204121.912 | J16: =+G16*(1-H16) -> 2204121.912
A17: Vegetate | C17: ha | F17: 0 | G17: 0 | H17: 0 | I17: 0 | J17: 0
A18: Raise crest | C18: m3 | F18: 0 | G18: 0 | H18: 0 | I18: 0 | J18: 0
A19: Flatten slopes | C19: m3 | F19: 0 | G19: 0 | H19: 0 | I19: 0 | J19: 0
A20: TIA_006 TIA Interim Dyke | B20: Recontour dike crest | C20: m3 | D20: 1115.04 | E20: DRH | F20: 3.24648 | G20: 3619.955059 | H20: 0.5 | I20: 1809.97753 | J20: 1809.97753
A21: TIA_006 TIA Interim Dyke | B21: Crown Access Road for Positive Drainage | C21: m2 | D21: 1520 | E21: DSH | F21: 5.14026 | G21: 7813.1952 | H21: 0.5 | I21: =G21*H21 -> 3906.5976 | J21: =+G21*(1-H21) -> 3906.5976
A22: Other | F22: 0 | G22: 0 | H22: 0 | I22: 0 | J22: 0
A23: COVER TAILINGS
A24: Grade/shape tailings surface | C24: m3 | F24: 0 | G24: =D24*F24 -> 0 | H24: 0 | I24: =G24*H24 -> 0 | J24: =+G24*(1-H24) -> 0
A25: Liner bedding | C25: m3 | F25: 0 | G25: 0 | H25: 0 | I25: =G25*H25 -> 0 | J25: =+G25*(1-H25) -> 0
A26: Subgrade preparation - compact | C26: m2 | F26: 0 | G26: 0 | H26: 0 | I26: =G26*H26 -> 0 | J26: =+G26*(1-H26) -> 0
A27: Supply geotextile/geosynthetic | C27: m2 | F27: 0 | G27: 0 | H27: 0 | I27: 0 | J27: 0
A28: Install geotextile/geosynthetic | C28: m2 | F28: 0 | G28: 0 | H28: 0 | I28: =G28*H28 -> 0 | J28: =+G28*(1-H28) -> 0
A29: Soil cover | C29: m3 | F29: 0 | G29: 0 | H29: 0 | I29: 0 | J29: 0
A30: Rock cover | C30: m3 | F30: 0 | G30: 0 | H30: 0 | I30: =G30*H30 -> 0 | J30: =+G30*(1-H30) -> 0
A31: TIA_001 TIA Subaerial Tailings Area | B31: LHDP ROQ to construct 0.3 m cover | C31: m3 | D31: 104250 | E31: RCS1H | F31: 16.75 | G31: 1746187.5 | H31: 0.5 | I31: 873093.75 | J31: 873093.75
A32: MN_026 Naartok Crown Recovery Trench | B32: Backfill with Waste Rock | C32: m3 | D32: 125911 | E32: RBS2H | F32: 15 | G32: 1888665 | H32: 0.5 | I32: 944332.5 | J32: 944332.5
A33: MN_026 Naartok Crown Recovery Trench | B33: Backfill with ROQ | C33: m3 | D33: 86089 | E33: RCS1H | F33: 16.75 | G33: 1441990.75 | H33: 0.5 | I33: 720995.375 | J33: 720995.375
A34: Vegetate | C34: m2 | F34: 0 | G34: 0 | H34: 0 | I34: 0 | J34: 0
A35: Other | F35: 0 | G35: 0 | H35: 0 | I35: 0 | J35: 0
A36: BURY PAG ROCK
A37: Relocate PAG rock | C37: m3 | F37: 0 | G37: =D37*F37 -> 0 | H37: 0 | I37: =G37*H37 -> 0 | J37: =+G37*(1-H37) -> 0
A38: Place cover over PAG rock | C38: m3 | F38: 0 | G38: =D38*F38 -> 0 | H38: 0 | I38: =G38*H38 -> 0 | J38: =+G38*(1-H38) -> 0
A39: Raise crest of dam | C39: m3 | F39: 0 | G39: =D39*F39 -> 0 | H39: 0 | I39: =G39*H39 -> 0 | J39: =+G39*(1-H39) -> 0
A40: Other | F40: 0 | G40: =D40*F40 -> 0 | H40: 0 | I40: =G40*H40 -> 0 | J40: =+G40*(1-H40) -> 0
A41: STABILIZE DECANT SYSTEM
A42: TIA_003 TIA North Dam | B42: Remove thermosyphon radiators and superstructure | C42: each | D42: 12 | E42: ER1SL | F42: 1000 | G42: =D42*F42 -> 12000 | H42: 0.5 | I42: =G42*H42 -> 6000 | J42: =+G42*(1-H42) -> 6000
A43: Excavate and replace | C43: m3 | F43: 0 | G43: =D43*F43 -> 0 | H43: 0 | I43: =G43*H43 -> 0 | J43: =+G43*(1-H43) -> 0
A44: Plug/backfill with concrete or clay | C44: m3 | F44: 0 | G44: =D44*F44 -> 0 | H44: 0 | I44: =G44*H44 -> 0 | J44: =+G44*(1-H44) -> 0
A45: Other | F45: 0 | G45: =D45*F45 -> 0 | H45: 0 | I45: =G45*H45 -> 0 | J45: =+G45*(1-H45) -> 0
A46: REMOVE TAILINGS DISCHARGE
A47: Cyclones | C47: m3 | F47: 0 | G47: =D47*F47 -> 0 | H47: 0 | I47: =G47*H47 -> 0 | J47: =+G47*(1-H47) -> 0
A48: Pipe | C48: m3 | F48: 0 | G48: =D48*F48 -> 0 | H48: 0 | I48: =G48*H48 -> 0 | J48: =+G48*(1-H48) -> 0
A49: Remove reclaim barge | C49: allow | F49: 0 | G49: =D49*F49 -> 0 | H49: 0 | I49: =G49*H49 -> 0 | J49: =+G49*(1-H49) -> 0
A50: CONSTRUCT DIVERSION DITCHES
A51: Excavate ditches -soil | C51: m3 | F51: 0 | G51: =D51*F51 -> 0 | H51: 0 | I51: =G51*H51 -> 0 | J51: =+G51*(1-H51) -> 0
A52: Excavate rock | C52: m3 | F52: 0 | G52: 0 | H52: 0 | I52: =G52*H52 -> 0 | J52: =+G52*(1-H52) -> 0
A53: Construct drainage channel | C53: m3 | F53: 0 | G53: 0 | H53: 0 | I53: =G53*H53 -> 0 | J53: =+G53*(1-H53) -> 0
A54: TIA_001 TIA Subaerial Tailings Area | B54: LHDP ROQ to construct 0.3 m drainage channel armoring | C54: m3 | D54: 8240.228977 | E54: RCS1H | F54: 16.75 | G54: 138023.8354 | H54: 0.5 | I54: 69011.91769 | J54: 69011.91769
A55: MN_026 Naartok Crown Recovery Trench | B55: Place ROQ | C55: m3 | D55: 4082 | E55: RCS1H | F55: 16.75 | G55: 68373.5 | H55: 0.5 | I55: =G55*H55 -> 34186.75 | J55: =+G55*(1-H55) -> 34186.75
A56: MN_026 Naartok Crown Recovery Trench | B56: Place Crushed Rock | C56: m3 | D56: 1548 | E56: RCS1H | F56: 16.75 | G56: 25929 | H56: 0.5 | I56: =G56*H56 -> 12964.5 | J56: =+G56*(1-H56) -> 12964.5
A57: Rip rap in channel base | C57: m3 | F57: 0 | G57: 0 | H57: 0 | I57: =G57*H57 -> 0 | J57: =+G57*(1-H57) -> 0
A58: MN_026 Naartok Crown Recovery Trench | B58: Place Rip Rap | C58: m3 | D58: 350 | E58: RR2H | F58: 27.933255 | G58: 9776.63925 | H58: 0.5 | I58: =G58*H58 -> 4888.319625 | J58: =+G58*(1-H58) -> 4888.319625
A59: FLOOD TAILINGS
A60: Doze tailings to final contour | C60: m3 | F60: 0 | G60: =D60*F60 -> 0 | H60: 0 | I60: =G60*H60 -> 0 | J60: =+G60*(1-H60) -> 0
A61: Raise crest of dam | C61: m3 | F61: 0 | G61: =D61*F61 -> 0 | H61: 0 | I61: =G61*H61 -> 0 | J61: =+G61*(1-H61) -> 0
A62: Other | F62: 0 | G62: =D62*F62 -> 0 | H62: 0 | I62: =G62*H62 -> 0 | J62: =+G62*(1-H62) -> 0
A63: UPGRADE SPILLWAY
A64: Excavate channel, rock | C64: m3 | F64: 0 | G64: =D64*F64 -> 0 | H64: 0 | I64: =G64*H64 -> 0 | J64: =+G64*(1-H64) -> 0
A65: TIA_003 TIA North Dam | B65: Breach the dam by cutting a 20 m slot down to original ground (drill and blast) | C65: m3 | D65: 7028.032 | E65: RC2H | F65: 24.88968 | G65: 174925.4675 | H65: 0.5 | I65: =G65*H65 -> 87462.73375 | J65: =+G65*(1-H65) -> 87462.73375
A66: TIA_003 TIA North Dam | B66: Thermal cover load and haul material | C66: m3 | D66: 31021.08 | E66: SC4L | F66: 12.58011 | G66: 390248.5987 | H66: 0.5 | I66: =G66*H66 -> 195124.2994 | J66: =+G66*(1-H66) -> 195124.2994
A67: TIA_003 TIA North Dam | B67: Clad the cut core faces for thermal protection | C67: m2 | D67: 614.24 | E67: CLD1L | F67: 225 | G67: 138204 | H67: 0.5 | I67: =G67*H67 -> 69102 | J67: =+G67*(1-H67) -> 69102
A68: Excavate channel, soil | C68: m3 | F68: 0 | G68: 0 | H68: 0 | I68: =G68*H68 -> 0 | J68: =+G68*(1-H68) -> 0
A69: Concrete | C69: m3 | F69: 0 | G69: 0 | H69: 0 | I69: =G69*H69 -> 0 | J69: =+G69*(1-H69) -> 0
A70: Rip rap | C70: m3 | F70: 0 | G70: 0 | H70: 0 | I70: =G70*H70 -> 0 | J70: =+G70*(1-H70) -> 0
A71: Other | F71: 0 | G71: 0 | H71: 0 | I71: =G71*H71 -> 0 | J71: =+G71*(1-H71) -> 0
A72: CONSTRUCT SEEPAGE COLLECTION POND
A73: Excavate seepage collection pond | C73: m3 | F73: 0 | G73: =D73*F73 -> 0 | H73: 0 | I73: =G73*H73 -> 0 | J73: =+G73*(1-H73) -> 0
A74: Doze & spread excavated material | C74: m3 | F74: 0 | G74: 0 | H74: 0 | I74: 0 | J74: 0
A75: Vegetate spread material | C75: ha | F75: 0 | G75: 0 | H75: 0 | I75: 0 | J75: 0
A76: Bedding layer | C76: m3 | F76: 0 | G76: 0 | H76: 0 | I76: 0 | J76: 0
A77: Supply geomembrane | C77: m2 | F77: 0 | G77: 0 | H77: 0 | I77: 0 | J77: 0
A78: Install geomembrane | C78: m2 | F78: 0 | G78: 0 | H78: 0 | I78: 0 | J78: 0
A79: Erosion protection layer | C79: m3 | F79: 0 | G79: 0 | H79: 0 | I79: 0 | J79: 0
A80: INSTALL GROUNDWATER COLLECTION SYSTEM
A81: Excavate/install sumps | C81: m3 | F81: 0 | G81: =D81*F81 -> 0 | H81: 0 | I81: =G81*H81 -> 0 | J81: =+G81*(1-H81) -> 0
A82: Install pumping wells | C82: m3 | F82: 0 | G82: =D82*F82 -> 0 | H82: 0 | I82: =G82*H82 -> 0 | J82: =+G82*(1-H82) -> 0
A83: MN_026 Naartok Crown Recovery Trench | B83: Drain Pond and Truck Water for Disposal - Included as Part of ICM | C83: each | F83: 0 | G83: =D83*F83 -> 0 | H83: 0 | I83: =G83*H83 -> 0 | J83: =+G83*(1-H83) -> 0
A84: Install pumps/pipelines/power supply | C84: LS | F84: 0 | G84: =D84*F84 -> 0 | H84: 0 | I84: =G84*H84 -> 0 | J84: =+G84*(1-H84) -> 0
A85: SPECIALIZED ITEMS
A86: Install permanent instrumentation, supply & technician | C86: each | F86: 0 | G86: =D86*F86 -> 0 | H86: 0 | I86: =G86*H86 -> 0 | J86: =+G86*(1-H86) -> 0
A87: Install permanent instrumentation, drilling | C87: each | F87: 0 | G87: =D87*F87 -> 0 | H87: 0 | J87: =+G87*(1-H87) -> 0
A88: OTHER
A89: TIA_002 TIA South Dam | B89: No closure activities are required | C89: m3 | F89: 0 | G89: =D89*F89 -> 0 | H89: 0 | I89: =G89*H89 -> 0 | J89: =+G89*(1-H89) -> 0
A90: TREAT SEEPAGE - see "Water Management" and "Water Treatment"
A91: TREAT SUPERNATANT
A92: Pump water (to pit, U/G) | C92: m3 | F92: 0 | G92: =D92*F92 -> 0 | H92: 0 | I92: =G92*H92 -> 0 | J92: =+G92*(1-H92) -> 0
A93: Equipment maintenance and parts | C93: allow | F93: 0 | G93: =D93*F93 -> 0 | H93: 0 | I93: =G93*H93 -> 0 | J93: =+G93*(1-H93) -> 0
A94: Supply reagents | C94: tonne | F94: 0 | G94: =D94*F94 -> 0 | H94: 0 | I94: =G94*H94 -> 0 | J94: =+G94*(1-H94) -> 0
F95: Annual treatment costs | G95: =SUM(G92:G94)+0.0001 -> 0.0001
A96: Number of years of treatment | C96: years
F97: Total treatment costs | G97: =G95*D96 -> 0 | J97: =G97 -> 0
F98: Total | G98: =SUM(G5:G87)+G97+0.0001 -> 12561086.36 | I98: =SUM(I5:I87)+I97 -> 6280543.182 | J98: =SUM(J5:J87)+J97 -> 6280543.182
F99: % of Total | I99: =I98/G98 -> 0.5 | J99: =J98/G98 -> 0.5
A100: * for construction of passive treatment system refer to "Water Management"

Sheet Rock Pile
A1: Rock Pile Name: | B1: Doris, Madrid, Roberts Bay Rock Piles
A3: ACTIVITY/MATERIAL | B3: Notes | C3: Unit | D3: Quantity | E3: Cost Code | F3: Unit Cost | G3: Cost | H3: % Land | I3: Land Cost | J3: Water Cost | K3: Comments
A4: STABILIZE SLOPES
A5: Grade Ore Rock Pile | F5: 0 | G5: =D5*F5 -> 0 | H5: 1 | I5: =G5*H5 -> 0 | J5: =+G5*(1-H5) -> 0
A6: DM_010 Doris Ore Pile | B6: Remove all ore and place underground | C6: m3 | D6: 16652 | E6: DRH | F6: 3.24648 | G6: 54060.38496 | H6: 1 | I6: 54060.38496 | J6: 0 | K6: Engineer & Geo Month End Report Sign Sheet -- Jan 2013. Stockpile Survey volumes.
A7: Grade Waste Rock Pile | F7: 0 | G7: 0 | H7: 1 | I7: =G7*H7 -> 0 | J7: 0
A8: DM_025 Doris Waste Rock Pile | B8: Waste Rock: Remove all waste rock (Place underground or at the TIA) | C8: m3 | D8: 313394 | E8: DRH | F8: 3.24648 | G8: 1017427.353 | H8: 1 | I8: =G8*H8 -> 1017427.353 | J8: 0 | K8: AutoCAD pad T survey
A9: DM_025 Doris Waste Rock Pile | B9: D Material Waste Rock: Remove all waste rock (Place underground or at the TIA) | C9: m3 | D9: 16666 | E9: DRH | F9: 3.24648 | G9: 54105.83568 | H9: 1 | I9: =G9*H9 -> 54105.83568 | J9: 0 | K9: AutoCAD pad T survey
A10: DM_025 Doris Waste Rock Pile | B10: Madrid Ore Waste Rock: Remove all waste rock (Place underground or at the TIA) | C10: m3 | D10: 14177 | E10: DRH | F10: 3.24648 | G10: 46025.34696 | H10: 1 | I10: 46025.34696 | J10: 0 | K10: AutoCAD pad T survey
A11: MN_ 001 Madrid North Waste Rock Pile This is Covered Under Another Task (CPRT Backfill MN_026 and / or Underground Backfill MN_011) | B11: Remove all waste rock (place in underground or CPRT) | C11: m3 | D11: 125911 | F11: 0 | G11: 0 | H11: 1 | I11: =G11*H11 -> 0 | J11: 0 | K11: Global Mapper difference between 2021 Drone Survey and 2021 topo raised 1m to represent the pad
A12: Grade Overburden Pile | C12: m3 | F12: 0 | G12: 0 | H12: 1 | I12: 0 | J12: 0
A13: RB_007 Roberts Bay Overburden Pile | B13: Collect all Debris | C13: m2 | D13: 14205 | E13: DSL | F13: 1.285065 | G13: 18254.34832 | H13: 1 | I13: =G13*H13 -> 18254.34832 | J13: 0
A14: RB_007 Roberts Bay Overburden Pile | B14: Load Waste into Containers | C14: m3 | D14: 9 | E14: LWCS1L | F14: 85 | G14: 765 | H14: 1 | I14: =G14*H14 -> 765 | J14: 0
A15: RB_007 Roberts Bay Overburden Pile | B15: Haul Containers to Quarry 3 Landfill | C15: Each | D15: 9 | E15: HCLFSL | F15: 85 | G15: 765 | H15: 1 | I15: 765 | J15: 0
A16: RB_007 Roberts Bay Overburden Pile | B16: Grade for positive drainage | C16: m2 | D16: 14205 | E16: DSL | F16: 1.285065 | G16: 18254.34832 | H16: 1 | I16: 18254.34832 | J16: 0
A17: DW_009 Doris-Windy All Weather Road Quarry D Overburden Pile | B17: Grade for positive drainage | C17: m2 | D17: 0 | F17: 0 | G17: 0 | H17: 1 | I17: =G17*H17 -> 0 | J17: 0
A18: Q2_002 Quarry 2 Overburden Pile | B18: Reslope to 3H:1V | C18: m2 | D18: 11019.33333 | E18: DSH | F18: 5.14026 | G18: 56642.23836 | H18: 1 | I18: 56642.23836 | J18: 0
A19: Q2_002 Quarry 2 Overburden Pile | B19: Grade top for positive drainage | C19: m2 | D19: 23140.6 | E19: DSL | F19: 1.285065 | G19: 29737.17514 | H19: 1 | I19: 29737.17514 | J19: 0
A20: Grade Overburden Pile | C20: m3 | F20: 0 | G20: 0 | H20: 1 | I20: 0 | J20: 0
A21: MN_028 Madrid North Overburden Stockpile | B21: Regrade for Positive Drainage | C21: m2 | D21: 32390 | E21: DSL | F21: 1.285065 | G21: 41623.25535 | H21: 1 | I21: =G21*H21 -> 41623.25535 | J21: 0
A22: Grade Laydown Areas | C22: m2 | F22: 0 | G22: 0 | H22: 1 | I22: 0 | J22: 0
A23: MN_001 Madrid North Waste Rock Pile | B23: Grade remaining pad for positive drainage | C23: m3 | D23: 27225 | E23: DSL | F23: 1.285065 | G23: 34985.89463 | H23: 1 | I23: 34985.89463 | J23: 0 | K23: Global Mapper difference between 2021 Drone Survey and 2021 topo raised 1m to represent the pad
A24: Flatten slopes with dozer | C24: m3 | F24: 0 | G24: 0 | H24: 1 | I24: =G24*H24 -> 0 | J24: 0
A25: Flatten "bubble dump" areas | C25: m3 | F25: 0 | G25: 0 | H25: 1 | I25: 0 | J25: =+G25*(1-H25) -> 0
A26: Divert runon, ditch mat'l A | C26: m3 | F26: 0 | G26: 0 | H26: 1 | I26: 0 | J26: 0
A27: Divert runon, ditch mat'l B | C27: m3 | F27: 0 | G27: 0 | H27: 1 | I27: 0 | J27: 0
A28: Toe buttress, drain mat'l | C28: m3 | F28: 0 | G28: 0 | H28: 1 | I28: 0 | J28: 0
A29: Toe buttress, fill mat'l A | C29: m3 | F29: 0 | G29: 0 | H29: 1 | I29: 0 | J29: 0
A30: Toe buttress, fill mat'l B | C30: m3 | F30: 0 | G30: 0 | H30: 1 | I30: 0 | J30: 0
A31: Other | F31: 0 | G31: 0 | H31: 1 | I31: 0 | J31: 0
A32: COVER ROCK PILE
A33: Subgrade preparation - doze surface | C33: m3 | F33: 0 | G33: =D33*F33 -> 0 | H33: 1 | I33: =G33*H33 -> 0 | J33: =+G33*(1-H33) -> 0
A34: Soil cover - excavate, haul, spread & compact | C34: m3 | F34: 0 | G34: 0 | H34: 1 | I34: 0 | J34: 0
A35: Rock cover - excavate, haul & spread | C35: m3 | F35: 0 | G35: 0 | H35: 1 | I35: 0 | J35: 0
A36: Excavate downslope drainage channel & chute | C36: m3 | F36: 0 | G36: 0 | H36: 1 | I36: 0 | J36: 0
A37: Rip rap drainage channel and chute | C37: m3 | F37: 0 | G37: 0 | H37: 1 | I37: 0 | J37: 0
A38: Vegetate | C38: ha | F38: 0 | G38: 0 | H38: 1 | I38: 0 | J38: 0
A39: Other | F39: 0 | G39: 0 | H39: 1 | I39: 0 | J39: 0
A40: VERY LOW PERMEABILITY COVER (in addition to above)
A41: Liner subgrade preparation - compact | C41: m2 | F41: 0 | G41: =D41*F41 -> 0 | H41: 1 | I41: =G41*H41 -> 0 | J41: =+G41*(1-H41) -> 0
A42: Supply geomembrane | C42: m2 | F42: 0 | G42: 0 | H42: 1 | I42: 0 | J42: 0
A43: Install geomembrane | C43: m2 | F43: 0 | G43: 0 | H43: 1 | I43: 0 | J43: 0
A44: Protective cover - excavate, haul, spread & compact | C44: m3 | F44: 0 | G44: 0 | H44: 1 | I44: 0 | J44: 0
A45: Vegetate | C45: ha | F45: 0 | G45: 0 | H45: 1 | I45: 0 | J45: 0
A46: Install infiltration/seepage instrumentation | C46: allow | F46: 0 | G46: 0 | H46: 1 | I46: 0 | J46: 0
A47: CONSTRUCT DIVERSION DITCHES
A48: Excavate ditches -soil | C48: m3 | F48: 0 | G48: =D48*F48 -> 0 | H48: 1 | I48: =G48*H48 -> 0 | J48: =+G48*(1-H48) -> 0
A49: Excavate ditches -rock | C49: m3 | F49: 0 | G49: =D49*F49 -> 0 | H49: 1 | I49: =G49*H49 -> 0 | J49: =+G49*(1-H49) -> 0
A50: Rip rap in channel base | C50: m3 | F50: 0 | G50: =D50*F50 -> 0 | H50: 1 | I50: =G50*H50 -> 0 | J50: =+G50*(1-H50) -> 0
A51: CONSTRUCT SEEPAGE COLLECTION POND
A52: Excavate seepage collection pond | C52: m3 | F52: 0 | G52: =D52*F52 -> 0 | H52: 1 | I52: =G52*H52 -> 0 | J52: =+G52*(1-H52) -> 0
A53: Doze & spread excavated material | C53: m3 | F53: 0 | G53: 0 | H53: 1 | I53: 0 | J53: 0
A54: Vegetate spread material | C54: ha | F54: 0 | G54: 0 | H54: 1 | I54: 0 | J54: 0
A55: Bedding layer | C55: m3 | F55: 0 | G55: 0 | H55: 1 | I55: 0 | J55: 0
A56: Supply geomembrane | C56: m2 | F56: 0 | G56: 0 | H56: 1 | I56: 0 | J56: 0
A57: Install geomembrane | C57: m2 | F57: 0 | G57: 0 | H57: 1 | I57: 0 | J57: 0
A58: Erosion protection layer | C58: m3 | F58: 0 | G58: 0 | H58: 1 | I58: 0 | J58: 0
A59: Q2_002 Quarry 2 Overburden Pile | B59: Install erosion protection measures (coconut matting) | C59: m3 | D59: 3305.8 | E59: GSGL | F59: 7.778025 | G59: 25712.59505 | H59: 1 | I59: =G59*H59 -> 25712.59505 | J59: =+G59*(1-H59) -> 0
A60: INSTALL GROUNDWATER COLLECTION SYSTEM
A61: Excavate/install sumps | C61: m3 | F61: 0 | G61: =D61*F61 -> 0 | H61: 1 | I61: =G61*H61 -> 0 | J61: =+G61*(1-H61) -> 0
A62: Install pumping wells | C62: m3 | F62: 0 | G62: =D62*F62 -> 0 | H62: 1 | I62: =G62*H62 -> 0 | J62: =+G62*(1-H62) -> 0
A63: Install pumps/pipelines/power supply | C63: allow | F63: 0 | G63: =D63*F63 -> 0 | H63: 1 | I63: =G63*H63 -> 0 | J63: =+G63*(1-H63) -> 0
A64: RELOCATE DUMPS
A65: Load, haul, dump or doze | C65: m3 | F65: 0 | G65: =D65*F65 -> 0 | H65: 1 | I65: =G65*H65 -> 0 | J65: =+G65*(1-H65) -> 0
A66: Add lime | C66: tonne | F66: 0 | G66: =D66*F66 -> 0 | H66: 1 | I66: =G66*H66 -> 0 | J66: =+G66*(1-H66) -> 0
A67: Contour reclaimed area | C67: ha | F67: 0 | G67: =D67*F67 -> 0 | H67: 1 | I67: =G67*H67 -> 0 | J67: =+G67*(1-H67) -> 0
A68: Other | F68: 0 | G68: =D68*F68 -> 0 | H68: 1 | I68: =G68*H68 -> 0 | J68: =+G68*(1-H68) -> 0
A69: SPECIALIZED ITEMS
A70: Install permanent instrumentation | C70: each | F70: 0 | G70: =D70*F70 -> 0 | H70: 1 | I70: =G70*H70 -> 0 | J70: =+G70*(1-H70) -> 0
A71: Install permanent instrumentation, drilling | C71: each | F71: 0 | G71: =D71*F71 -> 0 | H71: 1 | I71: =G71*H71 -> 0 | J71: =+G71*(1-H71) -> 0
A72: TREAT ROCK PILE SEEPAGE - see "Water Treatment"
A73: HEAP LEACH SEEPAGE TREATMENT - Cyanide Detox
A74: Cyanide destruction water treatment pumping | C74: m3 | F74: 0 | G74: =D74*F74 -> 0 | H74: 1 | I74: =G74*H74 -> 0 | J74: =+G74*(1-H74) -> 0
A75: Reagents | C75: tonne | F75: 0 | G75: =D75*F75 -> 0 | H75: 1 | I75: =G75*H75 -> 0 | J75: =+G75*(1-H75) -> 0
A76: Electrician/mechanic to maintain treatment plant | C76: allow | F76: 0 | G76: =D76*F76 -> 0 | H76: 1 | I76: =G76*H76 -> 0 | J76: =+G76*(1-H76) -> 0
A77: Equipment maintenance and parts | C77: allow | F77: 0 | G77: =D77*F77 -> 0 | H77: 1 | I77: =G77*H77 -> 0 | J77: =+G77*(1-H77) -> 0
F78: Annual treatment costs | G78: =SUM(G74:G77)+0.0001 -> 0.0001
A79: Number of years of treatment | C79: years
F80: Total treatment costs | G80: =G78*D79 -> 0 | J80: =G80 -> 0
A81: HEAP LEACH SEEPAGE TREATMENT - ARD/ML**
A82: Upgrade/modify pumping system - report to WTP | C82: allow | F82: 0 | G82: =F82*D82 -> 0 | J82: =G82 -> 0
F83: Total | G83: =SUM(G4:G71)+G80+G82+0.0001 -> 1398358.776 | I83: =SUM(I4:I71)+I80+I82 -> 1398358.776 | J83: =SUM(J4:J71)+J80+J82 -> 0
F84: % of Total | I84: =I83/G83 -> 0.9999999999 | J84: =J83/G83 -> 0
A86: * For construction of passive treatment system refer to "Water Management". ARD/ML seepage treatment becomes post-closure water treatment cost
A87: **Heap leach ARD/ML seepage treatment becomes post-closure water treatment cost

Sheet Chemicals
A1: Chemicals/Soil Area Name: | B1: Decontaminate Oil, Fuel, and Containment Liners
A3: Note: The procedures, equipment and packaging for clean up and removal of chemicals or contaminated soils are highly dependent on the nature of the chemicals and their existing state of containment. Government guidelines should be consulted on an individual chemical basis. Any estimate made here should be considered very rough unless specific evaluations have been conducted.
A4: ACTIVITY/MATERIAL | B4: Notes | C4: Unit | D4: Quantity | E4: Cost Code | F4: Unit Cost | G4: Cost | H4: % Land | I4: Land Cost | J4: Water Cost | K4: Comments
A5: HAZARDOUS MATERIALS AUDIT
A6: Hazardous materials audit | C6: mandays | E6: =NA() ->  | F6: 0 | G6: =D6*F6 -> 0 | I6: =G6*H6 -> 0 | J6: =+G6*(1-H6) -> 0
A7: BUILDING DECONTAMINATION & CONSOLIDATION OF HAZARDOUS MATERIALS
A8: Environmental technician/coordinator | C8: mandays | E8: =NA() ->  | F8: 0 | G8: =D8*F8 -> 0 | I8: =G8*H8 -> 0 | J8: =+G8*(1-H8) -> 0
A9: Decontaminate: Oil, Fuel | C9: mandays | E9: =NA() ->  | F9: 0 | G9: 0 | I9: =G9*H9 -> 0 | J9: =+G9*(1-H9) -> 0
A10: DM_030 Doris Primary Vent Raise | B10: Drain and decommission Enviro Tank | C10: each | D10: 1 | E10: ER2SL | F10: 12500 | G10: 12500 | H10: 0.5 | I10: =G10*H10 -> 6250 | J10: =+G10*(1-H10) -> 6250 | K10: Includes Removal Disposal
A11: DM_020 Doris Tank Farm | B11: Drain residual fuel | C11: litre | D11: 750000 | E11: ORL | F11: 0.581661 | G11: 436245.75 | H11: 0.5 | I11: =G11*H11 -> 218122.875 | J11: =+G11*(1-H11) -> 218122.875 | K11: Assume 10% of capacity
A12: DM_020 Doris Tank Farm | B12: Consolidate fuel in barge at Roberts Bay | C12: litre | D12: 750000 | E12: =NA() ->  | F12: 0 | G12: 0 | H12: 0.5 | I12: =G12*H12 -> 0 | J12: =+G12*(1-H12) -> 0 | K12: Included in Costs in the Previous Line
A13: DM_020 Doris Tank Farm | B13: Wash tanks | C13: each | D13: 5 | E13: ER3SL | F13: 1500 | G13: 7500 | H13: 0.5 | I13: 3750 | J13: 3750 | K13: assume no change
A14: DM_020 Doris Tank Farm | B14: Operate oil/water separator | C14: m3 | D14: 3944.583736 | E14: =NA() ->  | F14: 0 | G14: 0 | H14: 0.5 | I14: =G14*H14 -> 0 | J14: =+G14*(1-H14) -> 0 | K14: Included in Drain Residual Fuel
A15: RB_002 Roberts Bay 20 ML Tank Farm | B15: Drain residual fuel | C15: litre | D15: 200000 | E15: ORL | F15: 0.581661 | G15: 116332.2 | H15: 0.5 | I15: 58166.1 | J15: 58166.1 | K15: Assume 10% of capacity
A16: RB_002 Roberts Bay 20 ML Tank Farm | B16: Consolidate fuel in barge at Roberts Bay | C16: litre | D16: 200000 | E16: =NA() ->  | F16: 0 | G16: 0 | H16: 0.5 | I16: 0 | J16: 0 | K16: Included in Costs in the Previous Line
A17: RB_002 Roberts Bay 20 ML Tank Farm | B17: Wash tanks | C17: each | D17: 5 | E17: ER3SL | F17: 1500 | G17: 7500 | H17: 0.5 | I17: 3750 | J17: 3750
A18: RB_002 Roberts Bay 20 ML Tank Farm | B18: Operate oil/water separator | C18: m3 | D18: 4493.09073 | E18: =NA() ->  | F18: 0 | G18: 0 | H18: 0.5 | I18: 0 | J18: 0 | K18: Included in Drain Residual Fuel
A19: RB_003 Roberts Bay Quarry 1 - 5 ML Tank Facility | B19: Drain residual fuel | C19: litre | D19: 500000 | E19: ORL | F19: 0.581661 | G19: 290830.5 | H19: 0.5 | I19: 145415.25 | J19: 145415.25 | K19: Assume 10% of capacity
A20: RB_003 Roberts Bay Quarry 1 - 5 ML Tank Facility | B20: Consolidate fuel in barge at Roberts Bay | C20: litre | D20: 500000 | E20: =NA() ->  | F20: 0 | G20: 0 | H20: 0.5 | I20: 0 | J20: 0 | K20: Included in Costs in the Previous Line
A21: RB_003 Roberts Bay Quarry 1 - 5 ML Tank Facility | B21: Wash tanks | C21: each | D21: 1 | E21: ER3SL | F21: 1500 | G21: 1500 | H21: 0.5 | I21: 750 | J21: 750
A22: RB_003 Roberts Bay Quarry 1 - 5 ML Tank Facility | B22: Operate oil/water separator | C22: m3 | D22: 1123.272683 | E22: =NA() ->  | F22: 0 | G22: 0 | H22: 0.5 | I22: 0 | J22: 0 | K22: Included in Drain Residual Fuel
A23: RB_003 Roberts Bay Quarry 1 - 5 ML Tank Facility | B23: Drain and wash empty fuel drums | C23: each | D23: 0 | E23: =NA() ->  | F23: 0 | G23: 0 | H23: 0.5 | I23: =G23*H23 -> 0 | J23: =+G23*(1-H23) -> 0 | K23: From the airphoto it appears as thought the empty drums have been removed
A24: RB_003 Roberts Bay Quarry 1 - 5 ML Tank Facility | B24: Crush empty fuel drums | C24: each | D24: 0 | E24: =NA() ->  | F24: 0 | G24: 0 | H24: 0.5 | I24: 0 | J24: 0 | K24: From the airphoto it appears as thought the empty drums have been removed
A25: DM_026 Doris Water Intake Structure and Pumping Facility | B25: Collect All Debris | C25: m2 | D25: 2226.17 | E25: DSL | F25: 1.285065 | G25: 2860.773151 | H25: 0.5 | I25: =G25*H25 -> 1430.386576 | J25: =+G25*(1-H25) -> 1430.386576
A26: DM_026 Doris Water Intake Structure and Pumping Facility | B26: disconnect and remove generator fuel tank (place in Doris tank farm for cleaning) | C26: each | D26: 1 | E26: ER3SH | F26: 2500 | G26: 2500 | H26: 0.5 | I26: =G26*H26 -> 1250 | J26: =+G26*(1-H26) -> 1250
A27: DM_026 Doris Water Intake Structure and Pumping Facility | B27: clean tidytank and prep for shipping | C27: each | D27: 1 | E27: ER3SL | F27: 1500 | G27: 1500 | H27: 0.5 | I27: 750 | J27: 750
A28: DM_026 Doris Water Intake Structure and Pumping Facility | B28: run oil-water separator | C28: m3 | D28: 1 | E28: =NA() ->  | F28: 0 | G28: 0 | H28: 0.5 | I28: 0 | J28: 0 | K28: Included in Costs in the Previous Line
G29: =D29*F29 -> 0
A30: Decontaminate: liner | G30: 0
A31: RB_002 Roberts Bay 20 ML Tank Farm | B31: Clean liner | C31: m3 | D31: 13206 | E31: CLS1L | F31: 0.85 | G31: 11225.1 | H31: 0.5 | I31: =G31*H31 -> 5612.55 | J31: =+G31*(1-H31) -> 5612.55
A32: RB_003 Roberts Bay Quarry 1 - 5 ML Tank Facility | B32: Clean liner | C32: m3 | D32: 9933 | E32: CLS1L | F32: 0.85 | G32: 8443.05 | H32: 0.5 | I32: =G32*H32 -> 4221.525 | J32: =+G32*(1-H32) -> 4221.525
A33: DM_020 Doris Tank Farm | B33: Clean liner | C33: m3 | D33: 5500 | E33: CLS1L | F33: 0.85 | G33: 4675 | H33: 0.5 | I33: 2337.5 | J33: 2337.5
A34: RP_003 Reagent Pads Ammonium Nitrate Storage Area | B34: Clean liner | C34: m3 | D34: 2481 | E34: CLS1H | F34: 2 | G34: 4962 | H34: 0.5 | I34: =G34*H34 -> 2481 | J34: =+G34*(1-H34) -> 2481
A35: WM_001 Waste Management Area Land Farm | B35: Clean liner | C35: m3 | D35: 4384 | E35: CLS1L | F35: 0.85 | G35: 3726.4 | H35: 0.5 | I35: 1863.2 | J35: 1863.2
G36: 0
A37: Decontaminate maintenance shop | C37: mandays | E37: =NA() ->  | F37: 0 | G37: 0 | I37: =G37*H37 -> 0 | J37: =+G37*(1-H37) -> 0
A38: Decontaminate power plant | C38: mandays | E38: =NA() ->  | F38: 0 | G38: 0 | I38: 0 | J38: 0
A39: Decontaminate bulk fuel storage | C39: mandays | E39: =NA() ->  | F39: 0 | G39: 0 | I39: 0 | J39: 0
A40: Decontaminate ANFO plant | C40: mandays | E40: =NA() ->  | F40: 0 | G40: 0 | I40: 0 | J40: 0
A41: Decontaminate offices/warehouse/accom | C41: mandays | E41: =NA() ->  | F41: 0 | G41: 0 | I41: 0 | J41: 0
A42: Removal of asbestos siding on buildings | C42: m2 | E42: =NA() ->  | F42: 0 | G42: 0 | I42: 0 | J42: 0
A43: Removal of friable asbestos on equipment | C43: m2 | E43: =NA() ->  | F43: 0 | G43: 0 | I43: 0 | J43: 0
A44: Other | E44: =NA() ->  | F44: 0 | G44: 0 | I44: 0 | J44: 0
A45: HAZARDOUS MATERIALS REMOVAL
A46: Waste oils | C46: litre | E46: =NA() ->  | F46: 0 | G46: =D46*F46 -> 0 | I46: =G46*H46 -> 0 | J46: =+G46*(1-H46) -> 0
A47: Waste fuel | C47: litre | E47: =NA() ->  | F47: 0 | G47: 0 | I47: 0 | J47: 0
A48: Waste batteries | C48: kg | E48: =NA() ->  | F48: 0 | G48: 0 | I48: 0 | J48: 0
A49: Assay & environmental lab reagents | C49: kg | E49: =NA() ->  | F49: 0 | G49: 0 | I49: 0 | J49: 0
A50: Machine shop paints, solvents etc. | C50: litre | E50: =NA() ->  | F50: 0 | G50: 0 | I50: 0 | J50: 0
A51: Glycol | C51: litre | E51: =NA() ->  | F51: 0 | G51: 0 | I51: 0 | J51: 0
A52: Process reagents | C52: kg | E52: =NA() ->  | F52: 0 | G52: 0 | I52: 0 | J52: 0
A53: Nuclear sources | C53: allow | E53: =NA() ->  | F53: 0 | G53: 0 | I53: 0 | J53: 0
A54: Other hazardous materials | C54: allow | E54: =NA() ->  | F54: 0 | G54: 0 | I54: 0 | J54: 0
A55: HAZARDOUS MATERIALS
A56: Explosives
A57: DW_010 Doris-Windy All Weather Road Explosives Storage Facility | B57: Remove all explosives | C57: m3 | D57: 2176 | E57: REXSL | F57: 5 | G57: =D57*F57 -> 10880 | H57: 0.5 | I57: =G57*H57 -> 5440 | J57: =+G57*(1-H57) -> 5440 | K57: assume no change
A58: SR_004 Secondary Road Explosives Facility | B58: Remove all explosives | C58: m3 | D58: 100 | E58: REXSH | F58: 10 | G58: =D58*F58 -> 1000 | H58: 0.5 | I58: =G58*H58 -> 500 | J58: =+G58*(1-H58) -> 500 | K58: Allowance
A59: Transportation to disposal facility | C59: allow | E59: =NA() ->  | F59: 0 | G59: =D59*F59 -> 0 | I59: =G59*H59 -> 0 | J59: =+G59*(1-H59) -> 0
A60: Disposal fees | C60: allow | E60: =NA() ->  | F60: 0 | G60: =D60*F60 -> 0 | I60: =G60*H60 -> 0 | J60: =+G60*(1-H60) -> 0
A61: Other | E61: =NA() ->  | F61: 0 | G61: =D61*F61 -> 0 | I61: =G61*H61 -> 0 | J61: =+G61*(1-H61) -> 0
A62: CONTAMINATED SOILS
A63: Contam. soil investigation - Phase 1 | C63: each | E63: =NA() ->  | F63: 0 | G63: =D63*F63 -> 0 | I63: =G63*H63 -> 0 | J63: =+G63*(1-H63) -> 0
A64: Contam. soil investigation - Phase 2 | C64: each | E64: =NA() ->  | F64: 0 | G64: =D64*F64 -> 0 | I64: 0 | J64: 0
A65: CONTAMINATED SOIL REMOVAL
A66: Excavate and transport to onsite facility | C66: m3 | E66: =NA() ->  | F66: 0 | G66: =D66*F66 -> 0 | I66: =G66*H66 -> 0 | J66: =+G66*(1-H66) -> 0
A67: DM_020 Doris Tank Farm | B67: load contained contaminated soils into megabags for hauling | C67: m3 | D67: 1680 | E67: LWCS1L | F67: 85 | G67: 142800 | H67: 0.5 | I67: =G67*H67 -> 71400 | J67: =+G67*(1-H67) -> 71400 | K67: Percent of liner contaminated. Assume 50% of liner protection cover is contaminated
A68: DM_020 Doris Tank Farm | B68: haul megabags to Doris underground | C68: m3 | D68: 1680 | E68: HMDUSL | F68: 12 | G68: 20160 | H68: 0.5 | I68: =G68*H68 -> 10080 | J68: =+G68*(1-H68) -> 10080
A69: RB_002 Roberts Bay 20 ML Tank Farm | B69: load contained contaminated soils into megabags for hauling | C69: m3 | D69: 3961.8 | E69: LWCS1L | F69: 85 | G69: 336753 | H69: 0.5 | I69: =G69*H69 -> 168376.5 | J69: =+G69*(1-H69) -> 168376.5 | K69: Percent of liner contaminated. Assume 50% of liner protection cover is contaminated
A70: RB_002 Roberts Bay 20 ML Tank Farm | B70: haul megabags to Doris underground | C70: m3 | D70: 3961.8 | E70: HMDUSL | F70: 12 | G70: 47541.6 | H70: 0.5 | I70: 23770.8 | J70: 23770.8
A71: RB_003 Roberts Bay Quarry 1 - 5 ML Tank Facility | B71: load contained contaminated soils into megabags for hauling | C71: m3 | D71: 1489.95 | E71: LWCS1L | F71: 85 | G71: 126645.75 | H71: 0.5 | I71: 63322.875 | J71: 63322.875 | K71: Percent of liner contaminated. Assume 50% of liner protection cover is contaminated
A72: RB_003 Roberts Bay Quarry 1 - 5 ML Tank Facility | B72: haul megabags to Doris underground | C72: m3 | D72: 1489.95 | E72: HMDUSL | F72: 12 | G72: 17879.4 | H72: 0.5 | I72: =G72*H72 -> 8939.7 | J72: =+G72*(1-H72) -> 8939.7
A73: WM_001 Waste Management Area Land Farm | B73: Load contained contaminated soils into megabags for hauling | C73: m3 | D73: 100 | E73: LWCS1L | F73: 85 | G73: 8500 | H73: 0.5 | I73: 4250 | J73: 4250
A74: WM_001 Waste Management Area Land Farm | B74: Haul megabags to Doris underground | C74: m3 | D74: 100 | E74: HMDUSL | F74: 12 | G74: 1200 | H74: 0.5 | I74: 600 | J74: 600
A75: Manage hydrocarbon remediation at facility | C75: m3 | E75: =NA() ->  | F75: 0 | G75: 0 | I75: 0 | J75: 0
A76: Reagents/stabilizing agent | C76: m2 | E76: =NA() ->  | F76: 0 | G76: 0 | I76: =G76*H76 -> 0 | J76: =+G76*(1-H76) -> 0
A77: Excavate and transport to offsite facility | C77: m3 | E77: =NA() ->  | F77: 0 | G77: 0 | I77: 0 | J77: 0
A78: Contour decontaminated area | C78: m3 | E78: =NA() ->  | F78: 0 | G78: 0 | I78: =G78*H78 -> 0 | J78: =+G78*(1-H78) -> 0
A79: CONTAMINATED SOIL VERY LOW PERMEABILITY COVER
A80: Supply geomembrane, HDPE, ES3, GCL | C80: m2 | E80: =NA() ->  | F80: 0 | G80: =D80*F80 -> 0 | I80: =G80*H80 -> 0 | J80: =+G80*(1-H80) -> 0
A81: Upper and lower bedding layers | C81: m3 | E81: =NA() ->  | F81: 0 | G81: 0 | I81: 0 | J81: 0
A82: Install geomembrane, HDPE, ES3, GCL | C82: m2 | E82: =NA() ->  | F82: 0 | G82: 0 | I82: 0 | J82: 0
A83: Erosion protection layer | C83: m3 | E83: =NA() ->  | F83: 0 | G83: 0 | I83: 0 | J83: 0
A84: Vegetate | C84: m2 | E84: =NA() ->  | F84: 0 | G84: 0 | I84: 0 | J84: 0
A85: Install infiltration/seepage instrumentation | C85: allow | E85: =NA() ->  | F85: 0 | G85: 0 | I85: 0 | J85: 0
A86: Other | E86: =NA() ->  | F86: 0 | G86: 0 | I86: 0 | J86: 0
A87: OTHER
E88: =NA() ->  | F88: 0 | G88: =D88*F88 -> 0 | I88: =G88*H88 -> 0 | J88: =+G88*(1-H88) -> 0
F89: Total | G89: =SUM(G4:G88)+0.0001 -> 1625660.523 | I89: =SUM(I4:I88) -> 812830.2616 | J89: =SUM(J4:J88) -> 812830.2616
F90: % of Total | I90: =I89/G89 -> 0.5 | J90: =J89/G89 -> 0.5
G93: =SUM(G15:G18,G31) -> 135057.3

Sheet Bldgs & Equip
A1: Building / Equip Name: | B1: Site Buildings | F1: Bldg / Equip #: | G1: 1
A3: ACTIVITY/MATERIAL | B3: Notes | C3: Unit | D3: Quantity | E3: Cost Code | F3: Unit Cost | G3: Cost | H3: % Land | I3: Land Cost | J3: Water Cost | K3: Comments
A4: DISPOSE MOBILE EQUIPMENT
A5: Decontaminate and ship off-site | C5: allow | E5: =NA() ->  | F5: 0 | G5: =D5*F5 -> 0 | I5: =G5*H5 -> 0 | J5: =+G5*(1-H5) -> 0
A6: Decontaminate and dispose on-site | C6: allow | E6: =NA() ->  | F6: 0 | G6: =D6*F6 -> 0 | I6: =G6*H6 -> 0 | J6: =+G6*(1-H6) -> 0
A7: Other | E7: =NA() ->  | F7: 0 | G7: =D7*F7 -> 0 | I7: =G7*H7 -> 0 | J7: =+G7*(1-H7) -> 0
A8: REMOVE BUILDINGS AND INFRASTRUCTURE - see note below
A9: Accommodation Complex | G9: =D9*F9 -> 0 | I9: =G9*H9 -> 0 | J9: =+G9*(1-H9) -> 0
A10: DM_001 Doris Accommodation Complex | B10: Decommission electrical, mechanical, heating, plumbing, etc.) | C10: each | D10: 127 | E10: BRUS1L | F10: 750 | G10: =D10*F10 -> 95250 | H10: 1 | I10: 95250 | J10: 0
A11: DM_001 Doris Accommodation Complex | B11: Demolish trailers | C11: m2 | D11: 4473.92 | E11: BRWL | F11: 37.19925 | G11: =D11*F11 -> 166426.4686 | H11: 1 | I11: 166426.4686 | J11: 0
A12: DM_001 Doris Accommodation Complex | B12: Demolish cabins | C12: m2 | D12: 127.6303 | E12: BRWL | F12: 37.19925 | G12: 4747.751437 | H12: 1 | I12: 4747.751437 | J12: 0
A13: DM_001 Doris Accommodation Complex | B13: Demolish Large tents | C13: m2 | D13: 50.4 | E13: BRWL | F13: 37.19925 | G13: 1874.8422 | H13: 1 | I13: 1874.8422 | J13: 0
A14: DM_001 Doris Accommodation Complex | B14: Demolish small tents | C14: m2 | D14: 206.22 | E14: BRWL | F14: 37.19925 | G14: 7671.229335 | H14: 1 | I14: 7671.229335 | J14: 0
A15: DM_001 Doris Accommodation Complex | B15: Demolish cribbing, stairs, entryways, etc. | C15: each | D15: 82 | E15: BRCS1L | F15: 65 | G15: 5330 | H15: 1 | I15: 5330 | J15: 0
A16: DM_001 Doris Accommodation Complex | B16: Demolish arctic corridor | C16: m2 | D16: 53 | E16: BRWL | F16: 37.19925 | G16: 1971.56025 | H16: 1 | I16: 1971.56025 | J16: 0
A17: DM_001 Doris Accommodation Complex | B17: Demolish smoke shack tent | C17: m2 | D17: 28.0476 | E17: BRWL | F17: 37.19925 | G17: 1043.349684 | H17: 1 | I17: 1043.349684 | J17: 0 | K17: Added 2023
A18: DM_001 Doris Accommodation Complex | B18: Demolish building a to b corridor | C18: m2 | D18: 442.68 | E18: BRWL | F18: 37.19925 | G18: 16467.36399 | H18: 1 | I18: 16467.36399 | J18: 0 | K18: Added 2023
A19: DM_001 Doris Accommodation Complex | B19: Sea-can; disconnect containers and prep for shipping | C19: each | D19: 1 | E19: BRT1L | F19: 2000 | G19: 2000 | H19: 1 | I19: 2000 | J19: 0 | K19: Added 2023
A20: DM_001 Doris Accommodation Complex | B20: Sea-can 20''; disconnect containers and prep for shipping | C20: each | D20: 1 | E20: BRT1L | F20: 2000 | G20: 2000 | H20: 1 | I20: 2000 | J20: 0 | K20: Added 2023
A21: Process Facilities | G21: 0 | I21: 0 | J21: 0
A22: DM_021 Doris Process Plant | B22: Decommissioning Crusher, Milling, and Processing Plants | C22: each | D22: 1 | E22: DCMPSH | F22: 175000 | G22: 175000 | H22: 1 | I22: =G22*H22 -> 175000 | J22: =+G22*(1-H22) -> 0
A23: DM_021 Doris Process Plant | B23: Drain Chemicals and Reagents into Containers for Shipping Off-site | C23: each | D23: 1 | E23: DCRCSH | F23: 100000 | G23: 100000 | H23: 1 | I23: 100000 | J23: 0
A24: DM_021 Doris Process Plant | B24: Disassemble Process Plant Equipment and Prepare for Shipping | C24: each | D24: 1 | E24: ER10SH | F24: 350000 | G24: 350000 | H24: 1 | I24: 350000 | J24: 0
A25: DM_021 Doris Process Plant | B25: Demolish / Dismantle Mill Building | C25: m2 | D25: 41180 | E25: BRS1L | F25: 60.8715 | G25: 2506688.37 | H25: 1 | I25: 2506688.37 | J25: 0
A26: DM_021 Doris Process Plant | B26: Demolish Mill Building Concrete Slab | C26: m2 | D26: 8700 | E26: BRCL | F26: 54.108 | G26: 470739.6 | H26: 1 | I26: 470739.6 | J26: 0
A27: SR_005 Water Treatment Plant | B27: Decommissioning (Electrical and Mechanical) | C27: each | D27: 6 | E27: BRUS1H | F27: 2000 | G27: 12000 | H27: 1 | I27: =G27*H27 -> 12000 | J27: =+G27*(1-H27) -> 0
A28: SR_005 Water Treatment Plant | B28: Demolish Building | C28: m2 | D28: 2328.2175 | E28: BRS1H | F28: 87.9255 | G28: 204709.6878 | H28: 1 | I28: 204709.6878 | J28: 0
A29: SR_005 Water Treatment Plant | B29: Demolish and Cover Concrete Slab | C29: m2 | D29: 776.0725 | E29: BRCL | F29: 54.108 | G29: 41991.73083 | H29: 1 | I29: 41991.73083 | J29: 0
A30: SR_005 Water Treatment Plant | B30: Demolish and Cover Concrete Foundations | C30: m3 | D30: 42.83 | E30: CDSL | F30: 275 | G30: 11778.25 | H30: 1 | I30: 11778.25 | J30: 0
A31: Offices, Repair, Lab, Warehouse | G31: 0 | I31: 0 | J31: 0
A32: DM_009 Doris Offices & Mine Dry Complex | B32: Decommission (electrical, mechanical, plumbing) | C32: each | D32: 3 | E32: BRUS1L | F32: 750 | G32: 2250 | H32: 1 | I32: 2250 | J32: 0
A33: DM_009 Doris Offices & Mine Dry Complex | B33: Disconnect trailers and prep for moving (remove boards, cladding, etc.; wrap in plastic) | C33: each | D33: 17 | E33: BRT1H | F33: 3500 | G33: 59500 | H33: 1 | I33: 59500 | J33: 0
A34: DM_009 Doris Offices & Mine Dry Complex | B34: Demolish admin | C34: m2 | D34: 514.3968 | E34: BRWL | F34: 37.19925 | G34: 19135.17516 | H34: 1 | I34: =G34*H34 -> 19135.17516 | J34: =+G34*(1-H34) -> 0
A35: DM_009 Doris Offices & Mine Dry Complex | B35: Demolish arctic corridor | C35: m2 | D35: 289.7856 | E35: BRWL | F35: 37.19925 | G35: 10779.80698 | H35: 1 | I35: 10779.80698 | J35: 0
A36: DM_009 Doris Offices & Mine Dry Complex | B36: Demolish mine dry trailer | C36: m2 | D36: 956.8 | E36: BRWH | F36: 55.4607 | G36: 53064.79776 | H36: 1 | I36: 53064.79776 | J36: 0 | K36: Added 2023
A37: DM_009 Doris Offices & Mine Dry Complex | B37: Demolish office | C37: m2 | D37: 220.2112 | E37: BRWL | F37: 37.19925 | G37: 8191.691482 | H37: 1 | I37: 8191.691482 | J37: 0 | K37: Added 2023
A38: DM_009 Doris Offices & Mine Dry Complex | B38: Demolish cribbing, stairs, entryways, etc. | C38: each | D38: 17 | E38: BRCS1L | F38: 65 | G38: 1105 | H38: 1 | I38: 1105 | J38: 0
A39: DM_009 Doris Offices & Mine Dry Complex | B39: Sea-can 20''; disconnect containers and prep for shipping | C39: each | D39: 11 | E39: BRT1L | F39: 2000 | G39: 22000 | H39: 1 | I39: 22000 | J39: 0 | K39: Added 2023
A40: DM_009 Doris Offices & Mine Dry Complex | B40: Sea-can 40''; disconnect containers and prep for shipping | C40: each | D40: 2 | E40: BRT1L | F40: 2000 | G40: 4000 | H40: 1 | I40: 4000 | J40: 0 | K40: Added 2023
A41: DM_009 Doris Offices & Mine Dry Complex | B41: Haul trailers to Quarry 3 landfill | C41: each | D41: 17 | E41: HCLFSL | F41: 85 | G41: 1445 | H41: 1 | I41: 1445 | J41: 0
A42: MN_005 Madrid North Office Trailer | B42: Decommission (electrical, mechanical, plumbing) | C42: each | D42: 3 | E42: BRUS1H | F42: 2000 | G42: 6000 | H42: 1 | I42: 6000 | J42: 0
A43: MN_005 Madrid North Office Trailer | B43: Demolish trailer | C43: m2 | D43: 70 | E43: BRWL | F43: 37.19925 | G43: 2603.9475 | H43: 1 | I43: 2603.9475 | J43: 0
A44: MN_005 Madrid North Office Trailer | B44: Demolish cribbing, stairs, entryways, etc. | C44: each | D44: 4 | E44: BRCS1H | F44: 100 | G44: 400 | H44: 1 | I44: 400 | J44: 0
A45: Communications | G45: 0 | I45: 0 | J45: 0
A46: RB_009 Roberts Bay Communications Tower | B46: Dismantle and Decommission Tower | C46: each | D46: 1 | E46: DCTSH | F46: 17500 | G46: 17500 | H46: 1 | I46: 17500 | J46: 0
A47: RB_009 Roberts Bay Communications Tower | B47: Remove communications equipment | C47: each | D47: 4 | E47: RCMSH | F47: 1000 | G47: 4000 | H47: 1 | I47: 4000 | J47: 0
A48: DM_004 Doris Communications Tower | B48: Dismantle tower and prepare for shipping offsite | C48: each | D48: 2 | E48: DCTSH | F48: 17500 | G48: 35000 | H48: 1 | I48: 35000 | J48: 0
A49: DM_004 Doris Communications Tower | B49: Remove communications equipment | C49: each | D49: 12 | E49: RCMSL | F49: 500 | G49: 6000 | H49: 1 | I49: 6000 | J49: 0
A50: DM_004 Doris Communications Tower | B50: Demolish equipment housing shack | C50: m2 | D50: 9.6051 | E50: BRWH | F50: 55.4607 | G50: 532.7055696 | H50: 1 | I50: =G50*H50 -> 532.7055696 | J50: =+G50*(1-H50) -> 0
A51: DM_004 Doris Communications Tower | B51: Remove Electrical and Fiber Optics Cables | C51: each | D51: 12 | E51: RFOCSL | F51: 500 | G51: 6000 | H51: 1 | I51: 6000 | J51: 0
A52: DM_004 Doris Communications Tower | B52: Transport Communications tower equipment seacan to Roberts Bay | C52: each | D52: 2 | E52: HCLFSH | F52: 150 | G52: 300 | H52: 1 | I52: 300 | J52: 0
A53: Storage Facilities | G53: 0 | I53: 0 | J53: 0
A54: Water and Wastewater Treatment Facilities | G54: 0 | I54: 0 | J54: 0
A55: DM_017 Doris Sewage Treatment Plant | B55: Flush and remove sewage plumbing, collect sewage sludge/waste water in 55 gallon drums | C55: each | D55: 9 | E55: CSEWSL | F55: 725 | G55: 6525 | H55: 0.5 | I55: 3262.5 | J55: 3262.5
A56: DM_017 Doris Sewage Treatment Plant | B56: Decommission (electrical) | C56: each | D56: 9 | E56: DPGSL | F56: 1250 | G56: 11250 | H56: 0.5 | I56: 5625 | J56: 5625
A57: DM_017 Doris Sewage Treatment Plant | B57: Disconnect containers and prep for shipping | C57: each | D57: 9 | E57: BRT1L | F57: 2000 | G57: 18000 | H57: 0.5 | I57: 9000 | J57: 9000
A58: DM_017 Doris Sewage Treatment Plant | B58: Haul containers to Quarry 3 landfill | C58: each | D58: 9 | E58: HCLFSL | F58: 85 | G58: 765 | H58: 0.5 | I58: 382.5 | J58: 382.5
A59: DM_016 Doris Sewage Discharge Line | B59: Collect electrical cables and controllers and prep for shipping off-site | C59: m | D59: 1462 | E59: RECSL | F59: 7.5 | G59: 10965 | H59: 0.5 | I59: 5482.5 | J59: 5482.5
A60: SR_002 Secondary Road Tailings and Reclaim Water Pipelines | B60: Decommission electrical (heat tracing) | C60: each | D60: 4 | E60: BRUS1H | F60: 2000 | G60: 8000 | H60: 0.5 | I60: 4000 | J60: 4000
A61: SR_002 Secondary Road Tailings and Reclaim Water Pipelines | B61: Collect electrical cables and controllers and prep for shipping off-site | C61: m | D61: 4062.5 | E61: RECSL | F61: 7.5 | G61: 30468.75 | H61: 0.5 | I61: 15234.375 | J61: 15234.375
A62: DM_015 Doris Sedimentation/Pollution Control Pond | B62: disconnect piping and electrical wiring, remove sump pumps | C62: each | D62: 2 | E62: ER7SL | F62: 1250 | G62: 2500 | H62: 0.5 | I62: 1250 | J62: 1250
A63: DM_015 Doris Sedimentation/Pollution Control Pond | B63: remove and cut liner (and geotextile) into manageable pieces | C63: .m2 | D63: 14110 | E63: GSGRSL | F63: 1.75 | G63: 24692.5 | H63: 0.5 | I63: 12346.25 | J63: 12346.25
A64: DM_015 Doris Sedimentation/Pollution Control Pond | B64: plant sea-can 40'' | C64: each | D64: 4 | E64: BRUS1L | F64: 750 | G64: =D64*F64 -> 3000 | H64: 0.5 | I64: 1500 | J64: 1500 | K64: Added 2023
A65: MN_003 Madrid North Contact Water Pond Berm | B65: remove and cut liner (and geotextile) into manageable pieces | C65: .m2 | D65: 100 | E65: GSGRSH | F65: 3 | G65: 300 | H65: 0.5 | I65: =G65*H65 -> 150 | J65: =+G65*(1-H65) -> 150
A66: MN_003 Madrid North Contact Water Pond Berm | B66: disconnect piping and electrical wiring, remove sump pumps | C66: each | D66: 1 | E66: ER7SL | F66: 1250 | G66: 1250 | H66: 0.5 | I66: 625 | J66: 625
G67: 0 | I67: 0 | J67: 0
A68: Waste Management Facility | G68: 0 | I68: 0 | J68: 0
A69: RB_005 Roberts Bay Waste Management Facility | B69: Demolish wood structures (roof, entryway, etc.) | C69: m2 | D69: 128.6596 | E69: BRWL | F69: 37.19925 | G69: 4786.040625 | H69: 1 | I69: 4786.040625 | J69: 0
A70: RB_005 Roberts Bay Waste Management Facility | B70: Dismantle (welding crew) | C70: each | D70: 2 | E70: ER9SL | F70: 3000 | G70: 6000 | H70: 1 | I70: 6000 | J70: 0
A71: RB_005 Roberts Bay Waste Management Facility | B71: sea-can 20''; disconnect containers and prep for shipping | C71: each | D71: 11 | E71: BRT1L | F71: 2000 | G71: 22000 | H71: 1 | I71: 22000 | J71: 0
A72: RB_005 Roberts Bay Waste Management Facility | B72: Collect ashes and place in containers | C72: m3 | D72: 0.5 | E72: CSRSH | F72: 2000 | G72: 1000 | H72: 1 | I72: =G72*H72 -> 1000 | J72: =+G72*(1-H72) -> 0
A73: SR_001 Secondary Road | B73: Cut tailings line running alongside the road into manageable pieces | C73: m | D73: 5750 | E73: PLRL | F73: 29.7594 | G73: 171116.55 | H73: 0.5 | I73: 85558.275 | J73: 85558.275
A74: SR_001 Secondary Road | B74: Strap together or load pipe sections in containers for transport to landfill | C74: Each | D74: 150 | E74: HCLFSH | F74: 150 | G74: 22500 | H74: 0.5 | I74: 11250 | J74: 11250
A75: WM_002 Waste Management Area Batch Plant Pad | B75: Demolish tent structure | C75: m2 | D75: 1233.883333 | E75: BRWL | F75: 37.19925 | G75: 45899.53459 | H75: 1 | I75: 45899.53459 | J75: 0
A76: WM_003 Waste Management Area Burn Pan | B76: Collect ashes and place in containers | C76: m3 | D76: 0.24686925 | E76: CSRSH | F76: 2000 | G76: 493.7385 | H76: 1 | I76: 493.7385 | J76: 0
A77: WM_003 Waste Management Area Burn Pan | B77: Dismantle (welding crew) | C77: each | D77: 1 | E77: ER9SL | F77: 3000 | G77: 3000 | H77: 1 | I77: 3000 | J77: 0
A78: PL_001 Pipeline Roberts Bay Discharge System | B78: Decommission electrical (heat tracing) | C78: each | D78: 11 | E78: BRUS1L | F78: 750 | G78: 8250 | H78: 0.5 | I78: 4125 | J78: 4125 | K78: Added 2023
A79: PL_001 Pipeline Roberts Bay Discharge System | B79: Collect electrical cables and controllers and prep for shipping off-site | C79: lm | D79: 7775.3 | E79: RECSL | F79: 7.5 | G79: 58314.75 | H79: 0.5 | I79: =G79*H79 -> 29157.375 | J79: =+G79*(1-H79) -> 29157.375 | K79: as built
A80: DM_006 Doris Fresh Water Pipeline | B80: Decommission electrical (heat tracing) | C80: each | D80: 4 | E80: BRUS1H | F80: 2000 | G80: 8000 | H80: 0.5 | I80: 4000 | J80: 4000 | K80: Added 2023
A81: DM_006 Doris Fresh Water Pipeline | B81: Collect electrical cables and controllers and prep for shipping off-site | C81: lm | D81: 1600 | E81: RECSL | F81: 7.5 | G81: 12000 | H81: 0.5 | I81: =G81*H81 -> 6000 | J81: =+G81*(1-H81) -> 6000
A82: DM_026 Doris Water Intake Structure and Pumping Facility | B82: remove water intake line from Doris lake | C82: m | D82: 25 | E82: PLRL | F82: 29.7594 | G82: 743.985 | H82: 0.5 | I82: 371.9925 | J82: 371.9925
A83: DM_026 Doris Water Intake Structure and Pumping Facility | B83: decommission pumping facility (remove electrical) | C83: each | D83: 2 | E83: ER4SL | F83: 2000 | G83: 4000 | H83: 0.5 | I83: 2000 | J83: 2000
A84: DM_026 Doris Water Intake Structure and Pumping Facility | B84: prep containers for shipping off-site | C84: each | D84: 2 | E84: BRT1L | F84: 2000 | G84: 4000 | H84: 0.5 | I84: 2000 | J84: 2000
A85: DM_026 Doris Water Intake Structure and Pumping Facility | B85: prep generator container for shipping | C85: each | D85: 1 | E85: DGPSL | F85: 500 | G85: 500 | H85: 0.5 | I85: 250 | J85: 250
A86: DM_026 Doris Water Intake Structure and Pumping Facility | B86: haul containers to Roberts bay laydown | C86: each | D86: 2 | E86: HCLFSH | F86: 150 | G86: 300 | H86: 0.5 | I86: 150 | J86: 150
A87: Power | G87: 0 | I87: 0 | J87: 0
A88: DM_002 Doris Backup Power Generator | B88: Decommission electrical | C88: each | D88: 4 | E88: DPGSL | F88: 1250 | G88: 5000 | H88: 1 | I88: 5000 | J88: 0
A89: DM_002 Doris Backup Power Generator | B89: Disconnect generator units and prep for shipping off-site | C89: each | D89: 2 | E89: DGPSL | F89: 500 | G89: 1000 | H89: 1 | I89: 1000 | J89: 0
A90: DM_002 Doris Backup Power Generator | B90: Haul units to quarry 3 landfill | C90: m3 | D90: 67.6 | E90: HMDQSL | F90: 6.25 | G90: 422.5 | H90: 1 | I90: 422.5 | J90: 0
A91: DM_002 Doris Backup Power Generator | B91: Demolish tent housing structure | C91: m2 | D91: 259.32 | E91: BRWL | F91: 37.19925 | G91: 9646.50951 | H91: 1 | I91: 9646.50951 | J91: 0
A92: DM_002 Doris Backup Power Generator | B92: Demolish Concrete Slab | C92: m2 | D92: 259.32 | E92: BRCL | F92: 54.108 | G92: 14031.28656 | H92: 1 | I92: =G92*H92 -> 14031.28656 | J92: =+G92*(1-H92) -> 0
A93: DM_011 Doris Permanent Power Generator | B93: Decommission electrical | C93: each | D93: 8 | E93: DPGSH | F93: 2500 | G93: 20000 | H93: 1 | I93: 20000 | J93: 0
A94: DM_011 Doris Permanent Power Generator | B94: Disconnect generator units and prep for shipping off-site | C94: each | D94: 8 | E94: DGPSH | F94: 1000 | G94: 8000 | H94: 1 | I94: 8000 | J94: 0
A95: DM_011 Doris Permanent Power Generator | B95: Haul units to Roberts Bay Laydown | C95: m3 | D95: 264.8 | E95: HMDQSL | F95: 6.25 | G95: 1655 | H95: 1 | I95: 1655 | J95: 0
A96: DM_011 Doris Permanent Power Generator | B96: Dismantle stacks | C96: each | D96: 8 | E96: DCTSL | F96: 6000 | G96: 48000 | H96: 1 | I96: 48000 | J96: 0
A97: DM_011 Doris Permanent Power Generator | B97: Prep stacks for shipping | C97: each | D97: 166 | E97: LWCS2H | F97: 8 | G97: 1328 | H97: 1 | I97: 1328 | J97: 0
A98: DM_011 Doris Permanent Power Generator | B98: Haul stack sections to Quarry 3 landfill | C98: each | D98: 166 | E98: HMDQSL | F98: 6.25 | G98: 1037.5 | H98: 1 | I98: 1037.5 | J98: 0
A99: U/G Heating Plant | G99: =D99*F99 -> 0 | I99: 0 | J99: 0
A100: Emulsion Plant | G100: 0 | I100: 0 | J100: 0
A101: AN Storage Facility | G101: 0 | I101: 0 | J101: 0
A102: Warehouse, Shops and Other | G102: 0 | I102: 0 | J102: 0
A103: RB_004 Roberts Bay Mechanical Shop Complex | B103: Decommission electrical, mechanical, heating (including connections to generator house & transformer) | C103: each | D103: 3 | E103: BRUS1H | F103: 2000 | G103: 6000 | H103: 1 | I103: 6000 | J103: 0
A104: RB_004 Roberts Bay Mechanical Shop Complex | B104: Demolish (steel modular structure) | C104: m3 | D104: 0 | E104: =NA() ->  | F104: 0 | G104: 0 | H104: 1 | I104: 0 | J104: 0 | K104: Shop relocated to Madrid North area, concrete slab remains
A105: RB_004 Roberts Bay Mechanical Shop Complex | B105: Demolish wood structures (warehouse roof, crew lounge) | C105: m3 | D105: 0 | E105: =NA() ->  | F105: 0 | G105: 0 | H105: 1 | I105: 0 | J105: 0 | K105: 2022 Airphoto indicates these are no longer in place
A106: RB_004 Roberts Bay Mechanical Shop Complex | B106: Demolish tent structure (light vehicle shop) | C106: m2 | D106: 153.435 | E106: BRWL | F106: 37.19925 | G106: 5707.666924 | H106: 1 | I106: 5707.666924 | J106: 0
A107: RB_004 Roberts Bay Mechanical Shop Complex | B107: Demolish Concrete Slab | C107: m2 | D107: 92.061 | E107: BRCL | F107: 54.108 | G107: 4981.236588 | H107: 1 | I107: =G107*H107 -> 4981.236588 | J107: =+G107*(1-H107) -> 0
A108: RB_004 Roberts Bay Mechanical Shop Complex | B108: sea-can 20''; disconnect containers and prep for shipping | C108: each | D108: 28 | E108: BRT1L | F108: 2000 | G108: 56000 | H108: 1 | I108: 56000 | J108: 0 | K108: Added 2023
A109: RB_004 Roberts Bay Mechanical Shop Complex | B109: sea-can 40''; disconnect containers and prep for shipping | C109: each | D109: 12 | E109: BRT1L | F109: 2000 | G109: 24000 | H109: 1 | I109: 24000 | J109: 0 | K109: Added 2023
A110: RB_004 Roberts Bay Mechanical Shop Complex | B110: Demolish structures (trailers) | C110: m3 | D110: 29.016 | E110: BRWL | F110: 37.19925 | G110: 1079.373438 | H110: 1 | I110: 1079.373438 | J110: 0
A111: MN_029 Nuna Shop | B111: Decommission (electrical, mechanical, plumbing) | C111: each | D111: 2 | E111: BRUS1H | F111: 2000 | G111: 4000 | H111: 1 | I111: =G111*H111 -> 4000 | J111: =+G111*(1-H111) -> 0
A112: MN_029 Nuna Shop | B112: Demolish Building | C112: m2 | D112: 527 | E112: BRWL | F112: 37.19925 | G112: 19604.00475 | H112: 1 | I112: 19604.00475 | J112: 0
A113: MN_029 Nuna Shop | B113: Demolish Concrete Slab | C113: m2 | D113: 527 | E113: BRCL | F113: 54.108 | G113: 28514.916 | H113: 1 | I113: =G113*H113 -> 28514.916 | J113: =+G113*(1-H113) -> 0
A114: DM_008 Doris Muster Station | B114: Demolish tent structure | C114: m2 | D114: 90.9216 | E114: BRWL | F114: 37.19925 | G114: 3382.215329 | H114: 1 | I114: 3382.215329 | J114: 0
A115: DM_008 Doris Muster Station | B115: Dismantle wood flooring | C115: m2 | D115: 90.9216 | E115: =NA() ->  | F115: 0 | G115: 0 | H115: 1 | I115: 0 | J115: 0 | K115: Included in the above unit cost
A116: DM_008 Doris Muster Station | B116: sea-can 20''; disconnect containers and prep for shipping | C116: each | D116: 2 | E116: BRT1L | F116: 2000 | G116: 4000 | H116: 1 | I116: 4000 | J116: 0 | K116: Added 2023
A117: DM_022 Doris Underground Support Mechanic Shop | B117: Decommission electrical, mechanical (including connections to generator house & transformer) | C117: each | D117: 3 | E117: PDCS2L | F117: 5000 | G117: 15000 | H117: 1 | I117: 15000 | J117: 0
A118: DM_022 Doris Underground Support Mechanic Shop | B118: Demolish shop building | C118: m2 | D118: 760.518 | E118: BRWL | F118: 37.19925 | G118: 28290.69921 | H118: 1 | I118: 28290.69921 | J118: 0
A119: DM_022 Doris Underground Support Mechanic Shop | B119: sea-can 20''; disconnect containers and prep for shipping | C119: each | D119: 10 | E119: BRT1L | F119: 2000 | G119: 20000 | H119: 1 | I119: 20000 | J119: 0 | K119: Added 2023
A120: DM_022 Doris Underground Support Mechanic Shop | B120: sea-can 40''; disconnect containers and prep for shipping | C120: each | D120: 6 | E120: BRT1L | F120: 2000 | G120: 12000 | H120: 1 | I120: 12000 | J120: 0 | K120: Added 2023
A121: DM_023 Doris Underground Wash Bay | B121: Demolish shop building/Demolish tent structure | C121: m2 | D121: 258.96 | E121: BRWL | F121: 37.19925 | G121: 9633.11778 | H121: 1 | I121: 9633.11778 | J121: 0
A122: DM_023 Doris Underground Wash Bay | B122: sea-can 20''; disconnect containers and prep for shipping | C122: each | D122: 24 | E122: BRT1L | F122: 2000 | G122: 48000 | H122: 1 | I122: 48000 | J122: 0 | K122: Added 2023
A123: DM_023 Doris Underground Wash Bay | B123: sea-can 40''; disconnect containers and prep for shipping | C123: each | D123: 3 | E123: BRT1L | F123: 2000 | G123: 6000 | H123: 1 | I123: 6000 | J123: 0 | K123: Added 2023
A124: DM_024 Doris Warehouse/Core Shack | B124: Demolish tent structure | C124: m2 | D124: 310.34775 | E124: BRWL | F124: 37.19925 | G124: 11544.70354 | H124: 1 | I124: 11544.70354 | J124: 0
A125: DM_024 Doris Warehouse/Core Shack | B125: Dismantle wood flooring, shelving, and lofts | C125: m2 | D125: 310.34775 | E125: BRWL | F125: 37.19925 | G125: 11544.70354 | H125: 1 | I125: 11544.70354 | J125: 0
A126: DM_024 Doris Warehouse/Core Shack | B126: sea-can 20''; disconnect containers and prep for shipping | C126: each | D126: 12 | E126: BRT1L | F126: 2000 | G126: 24000 | H126: 1 | I126: 24000 | J126: 0 | K126: Added 2023
A127: DM_024 Doris Warehouse/Core Shack | B127: sea-can 40''; disconnect containers and prep for shipping | C127: each | D127: 5 | E127: BRT1L | F127: 2000 | G127: 10000 | H127: 1 | I127: 10000 | J127: 0 | K127: Added 2023
A128: DM_024 Doris Warehouse/Core Shack | B128: Demolish orbit trailer | C128: m2 | D128: 45.362 | E128: BRWL | F128: 37.19925 | G128: =D128*F128 -> 1687.432379 | H128: 1 | I128: 1687.432379 | J128: 0
A129: DM_024 Doris Warehouse/Core Shack | B129: Demolish geotech trailer | C129: m2 | D129: 45.362 | E129: BRWL | F129: 37.19925 | G129: 1687.432379 | H129: 1 | I129: 1687.432379 | J129: 0
A130: DM_024 Doris Warehouse/Core Shack | B130: Demolish core log tent | C130: m2 | D130: 35.6174 | E130: BRWL | F130: 37.19925 | G130: 1324.940567 | H130: 1 | I130: 1324.940567 | J130: 0
A131: DM_024 Doris Warehouse/Core Shack | B131: Demolish contractor tents | C131: m2 | D131: 28.1274 | E131: BRWL | F131: 37.19925 | G131: 1046.318184 | H131: 1 | I131: 1046.318184 | J131: 0
A132: DM_024 Doris Warehouse/Core Shack | B132: Demolish bent shack tent | C132: m2 | D132: 35.6174 | E132: BRWL | F132: 37.19925 | G132: 1324.940567 | H132: 1 | I132: 1324.940567 | J132: 0
A133: DM_024 Doris Warehouse/Core Shack | B133: Demolish Concrete Slab | C133: m2 | D133: 190.0862 | E133: BRCL | F133: 54.108 | G133: 10285.18411 | H133: 1 | I133: =G133*H133 -> 10285.18411 | J133: =+G133*(1-H133) -> 0
A134: DW_010 Doris-Windy All Weather Road Explosives Storage Facility | B134: Demolish entry gates | C134: each | D134: 1 | E134: DEGSL | F134: 75 | G134: 75 | H134: 1 | I134: 75 | J134: 0
A135: SR_004 Secondary Road Explosives Facility | B135: Demolish entry gates | C135: each | D135: 1 | E135: DEGSL | F135: 75 | G135: 75 | H135: 1 | I135: =G135*H135 -> 75 | J135: =+G135*(1-H135) -> 0
A136: RP_004 Reagent Pads Exploration Drilling Support Shop | B136: Decommission electrical, mechanical, heating | C136: each | D136: 2 | E136: BRUS1H | F136: 2000 | G136: 4000 | H136: 1 | I136: 4000 | J136: 0
A137: RP_004 Reagent Pads Exploration Drilling Support Shop | B137: Demolish tent structure | C137: m3 | D137: 236.22 | E137: BRWL | F137: 37.19925 | G137: 8787.206835 | H137: 1 | I137: 8787.206835 | J137: 0
A138: RP_004 Reagent Pads Exploration Drilling Support Shop | B138: Sea-can; disconnect containers and prep for shipping | C138: each | D138: 13 | E138: BRT1L | F138: 2000 | G138: 26000 | H138: 1 | I138: =G138*H138 -> 26000 | J138: =+G138*(1-H138) -> 0
A139: RP_004 Reagent Pads Exploration Drilling Support Shop | B139: Haul Sea-cans to Quarry 3 Landfill | C139: each | D139: 13 | E139: HCLFSH | F139: 150 | G139: 1950 | H139: 1 | I139: 1950 | J139: 0
A140: DM_007 Doris Helicopter Support Facilities | B140: Demolish helishack 1 | C140: m2 | D140: 40.88 | E140: BRWL | F140: 37.19925 | G140: 1520.70534 | H140: 1 | I140: 1520.70534 | J140: 0
A141: DM_007 Doris Helicopter Support Facilities | B141: Demolish helishack 2 | C141: m2 | D141: 14.8975 | E141: BRWL | F141: 37.19925 | G141: 554.1758269 | H141: 1 | I141: 554.1758269 | J141: 0
A142: DM_007 Doris Helicopter Support Facilities | B142: Demolish helishack liftstation | C142: m2 | D142: 14.4305 | E142: BRWL | F142: 37.19925 | G142: 536.8037771 | H142: 1 | I142: 536.8037771 | J142: 0 | K142: Added 2023
A143: DM_007 Doris Helicopter Support Facilities | B143: Demolish helishack office | C143: m2 | D143: 33.823 | E143: BRWL | F143: 37.19925 | G143: 1258.190233 | H143: 1 | I143: 1258.190233 | J143: 0 | K143: Added 2023
A144: DM_007 Doris Helicopter Support Facilities | B144: sea-can 20''; disconnect containers and prep for Quarry 3 | C144: each | D144: 10 | E144: BRT1L | F144: 2000 | G144: 20000 | H144: 1 | I144: 20000 | J144: 0 | K144: Added 2023
A145: DM_007 Doris Helicopter Support Facilities | B145: Decommission washcar and other facilities | C145: each | D145: 1 | E145: BRT1L | F145: 2000 | G145: 2000 | H145: 1 | I145: 2000 | J145: 0
A146: DM_027 Doris Airstrip | B146: Decommission airstrip | C146: each | D146: 2 | E146: DCASL | F146: 1250 | G146: 2500 | H146: 1 | I146: 2500 | J146: 0
A147: DM_028 Doris Airstrip Aprons | B147: Decommission electrical, and heating from traffic control tower | C147: each | D147: 1 | E147: DCTSL | F147: 6000 | G147: 6000 | H147: 1 | I147: =G147*H147 -> 6000 | J147: =+G147*(1-H147) -> 0
A148: DM_028 Doris Airstrip Aprons | B148: Demolish control tower structure (wood shack) | C148: m3 | D148: 12.2 | E148: BRWL | F148: 37.19925 | G148: 453.83085 | H148: 1 | I148: 453.83085 | J148: 0
A149: DM_028 Doris Airstrip Aprons | B149: Disconnect containers and prep for shipping | C149: each | D149: 5 | E149: BRT1L | F149: 2000 | G149: 10000 | H149: 1 | I149: 10000 | J149: 0
A150: DM_028 Doris Airstrip Aprons | B150: Haul trailers to Quarry 3 landfill | C150: each | D150: 5 | E150: HCLFSL | F150: 85 | G150: 425 | H150: 1 | I150: 425 | J150: 0
A151: DM_029 Doris Airstrip Lighting | B151: Remove lighting fixtures (airstrip lighting, approach lights) | C151: each | D151: 70 | E151: RALSL | F151: 50 | G151: 3500 | H151: 1 | I151: 3500 | J151: 0
A152: RB_006 Roberts Bay Laydown Area | B152: Decommission vehicle plug system | C152: each | D152: 1 | E152: DVPSL | F152: 3000 | G152: 3000 | H152: 1 | I152: 3000 | J152: 0
A153: RB_006 Roberts Bay Laydown Area | B153: Remove cables and posts | C153: each | D153: 8 | E153: RCPSL | F153: 2000 | G153: 16000 | H153: 1 | I153: 16000 | J153: 0
A154: DW_008 Doris-Windy All Weather Road Core Storage Area | B154: Load core boxes into containers for shipping | C154: m3 | D154: 1665 | E154: LWCS2H | F154: 8 | G154: 13320 | H154: 1 | I154: 13320 | J154: 0
A155: DW_008 Doris-Windy All Weather Road Core Storage Area | B155: Haul containers to Quarry 3 landfill | C155: m3 | D155: 1665 | E155: HMDQSL | F155: 6.25 | G155: 10406.25 | H155: 1 | I155: 10406.25 | J155: 0
A156: WM_004 Waste Management Area Core Storage | B156: Load core boxes into containers for shipping | C156: m3 | D156: 500 | E156: LWCS2H | F156: 8 | G156: 4000 | H156: 1 | I156: 4000 | J156: 0
A157: Storage Facility at Laydown/Airstrip | G157: 0 | I157: 0 | J157: 0
A158: DM_005 Doris Fire Water Storage Tank | B158: Decommission and disconnect electrical and plumbing | C158: each | D158: 3 | E158: BRUS1L | F158: 750 | G158: 2250 | H158: 1 | I158: 2250 | J158: 0
A159: DM_005 Doris Fire Water Storage Tank | B159: Disconnect and remove container housing the pumps and controls, and prep for shipping | C159: each | D159: 1 | E159: ER4SL | F159: 2000 | G159: 2000 | H159: 1 | I159: 2000 | J159: 0
A160: DM_005 Doris Fire Water Storage Tank | B160: Haul pump house seacan container to Quarry 3 landfill | C160: each | D160: 1 | E160: HCLFSH | F160: 150 | G160: 150 | H160: 1 | I160: 150 | J160: 0
A161: DM_005 Doris Fire Water Storage Tank | B161: Remove tank insulation | C161: each | D161: 1 | E161: ER5SL | F161: 7500 | G161: 7500 | H161: 1 | I161: 7500 | J161: 0
A162: DM_005 Doris Fire Water Storage Tank | B162: Dismantle tanks and cut into manageable pieces | C162: each | D162: 1 | E162: ER6SH | F162: 100000 | G162: 100000 | H162: 1 | I162: 100000 | J162: 0
A163: DM_005 Doris Fire Water Storage Tank | B163: prepare pieces for transportation | C163: Each | D163: 10 | E163: HCLFSH | F163: 150 | G163: 1500 | H163: 1 | I163: 1500 | J163: 0
A164: DM_005 Doris Fire Water Storage Tank | B164: haul containers to Quarry 3 landfill | C164: m3 | D164: 120 | E164: HMDQSH | F164: 10.5 | G164: 1260 | H164: 1 | I164: 1260 | J164: 0
A165: Vent Raises | G165: 0 | I165: 0 | J165: 0
A166: DM_030 Doris Primary Vent Raise | B166: Decommission and dismantle heating and ventilation system | C166: each | D166: 4 | E166: ER8SL | F166: 15625 | G166: 62500 | H166: 1 | I166: 62500 | J166: 0
A167: DM_030 Doris Primary Vent Raise | B167: Prepare heating and ventilation units for shipping | C167: each | D167: 4 | E167: BRT1H | F167: 3500 | G167: 14000 | H167: 1 | I167: 14000 | J167: 0
A168: DM_030 Doris Primary Vent Raise | B168: Haul heating and ventilation units to Quarry 3 Landfill | C168: each | D168: 4 | E168: HCLFSH | F168: 150 | G168: 600 | H168: 1 | I168: 600 | J168: 0
A169: DM_033 Doris Connector Vent Raise | B169: Decommission and dismantle heating and ventilation system | C169: each | D169: 2 | E169: ER8SL | F169: 15625 | G169: 31250 | H169: 1 | I169: 31250 | J169: 0
A170: DM_033 Doris Connector Vent Raise | B170: Prepare heating and ventilation units for shipping | C170: each | D170: 1 | E170: BRT1H | F170: 3500 | G170: 3500 | H170: 1 | I170: 3500 | J170: 0
A171: DM_033 Doris Connector Vent Raise | B171: Haul heating and ventilation units to Quarry 3 Landfill | C171: m3 | D171: 2 | E171: HCLFSH | F171: 150 | G171: 300 | H171: 1 | I171: 300 | J171: 0
A172: Fuel tanks | G172: 0 | I172: 0 | J172: 0
A173: DM_030 Doris Primary Vent Raise | B173: Haul Enviro Tank to Roberts Bay | C173: each | D173: 1 | E173: HCLFSH | F173: 150 | G173: 150 | H173: 0.5 | I173: 75 | J173: 75
A174: DM_030 Doris Primary Vent Raise | B174: Remove liner and cut into manageable pieces | C174: m2 | D174: 1230 | E174: GSGRSH | F174: 3 | G174: 3690 | H174: 0.5 | I174: 1845 | J174: 1845
A175: DM_020 Doris Tank Farm | B175: Decommission fuel transfer facilities | C175: each | D175: 5 | E175: DFTFSL | F175: 5000 | G175: 25000 | H175: 0.5 | I175: 12500 | J175: 12500
A176: DM_020 Doris Tank Farm | B176: Disconnect piping and controls | C176: each | D176: 5 | E176: DPCSL | F176: 5000 | G176: 25000 | H176: 0.5 | I176: 12500 | J176: 12500
A177: DM_020 Doris Tank Farm | B177: Dismantle tanks and cut into manageable pieces | C177: each | D177: 5 | E177: ER6SH | F177: 100000 | G177: 500000 | H177: 0.5 | I177: 250000 | J177: 250000
A178: DM_020 Doris Tank Farm | B178: Prepare pieces for transportation | C178: Each | D178: 50 | E178: HCLFSH | F178: 150 | G178: 7500 | H178: 0.5 | I178: 3750 | J178: 3750
A179: DM_020 Doris Tank Farm | B179: Remove liner and cut into manageable pieces | C179: m2 | D179: 5500 | E179: GSGRSL | F179: 1.75 | G179: =D179*F179 -> 9625 | H179: 0.5 | I179: 4812.5 | J179: 4812.5
A180: RB_002 Roberts Bay 20 ML Tank Farm | B180: Decommission fuel transfer facilities | C180: each | D180: 1 | E180: DFTFSL | F180: 5000 | G180: 5000 | H180: 0.5 | I180: =G180*H180 -> 2500 | J180: =+G180*(1-H180) -> 2500
A181: RB_002 Roberts Bay 20 ML Tank Farm | B181: Disconnect piping and controls | C181: each | D181: 5 | E181: DPCSL | F181: 5000 | G181: 25000 | H181: 0.5 | I181: 12500 | J181: 12500
A182: RB_002 Roberts Bay 20 ML Tank Farm | B182: Dismantle tanks and cut into manageable pieces | C182: each | D182: 5 | E182: ER6SH | F182: 100000 | G182: 500000 | H182: 0.5 | I182: 250000 | J182: 250000
A183: RB_002 Roberts Bay 20 ML Tank Farm | B183: Prepare pieces for transportation | C183: Each | D183: 50 | E183: HCLFSH | F183: 150 | G183: 7500 | H183: 0.5 | I183: 3750 | J183: 3750
A184: RB_002 Roberts Bay 20 ML Tank Farm | B184: Remove liner and cut into manageable pieces | C184: m2 | D184: 13206 | E184: GSGRSL | F184: 1.75 | G184: 23110.5 | H184: 0.5 | I184: 11555.25 | J184: 11555.25
A185: RB_003 Roberts Bay Quarry 1 - 5 ML Tank Facility | B185: Decommission fuel transfer facilities | C185: each | D185: 2 | E185: DFTFSL | F185: 5000 | G185: 10000 | H185: 0.5 | I185: 5000 | J185: 5000
A186: RB_003 Roberts Bay Quarry 1 - 5 ML Tank Facility | B186: Disconnect piping and controls | C186: each | D186: 2 | E186: DPCSL | F186: 5000 | G186: 10000 | H186: 0.5 | I186: 5000 | J186: 5000
A187: RB_003 Roberts Bay Quarry 1 - 5 ML Tank Facility | B187: Dismantle tanks and cut into manageable pieces | C187: each | D187: 2 | E187: ER6SH | F187: 100000 | G187: 200000 | H187: 0.5 | I187: 100000 | J187: 100000
A188: RB_003 Roberts Bay Quarry 1 - 5 ML Tank Facility | B188: Prepare pieces for transportation | C188: Each | D188: 20 | E188: HCLFSH | F188: 150 | G188: 3000 | H188: 0.5 | I188: 1500 | J188: 1500
A189: RB_003 Roberts Bay Quarry 1 - 5 ML Tank Facility | B189: Remove liner and cut into manageable pieces | C189: m2 | D189: 9933 | E189: GSGRSL | F189: 1.75 | G189: 17382.75 | H189: 0.5 | I189: 8691.375 | J189: 8691.375
A190: RB_003 Roberts Bay Quarry 1 - 5 ML Tank Facility | B190: sea-can 20''; disconnect containers and prep for Quarry 3 | C190: each | D190: 40 | E190: BRT1L | F190: 2000 | G190: 80000 | H190: 0.5 | I190: 40000 | J190: 40000 | K190: Added 2023
A191: RP_003 Reagent Pads Ammonium Nitrate Storage Area | B191: Remove liner and cut into manageable pieces | C191: m2 | D191: 2481 | E191: GSGRSH | F191: 3 | G191: 7443 | H191: 0.5 | I191: 3721.5 | J191: 3721.5
A192: WM_001 Waste Management Area Land Farm | B192: Remove liner and cut into manageable pieces | C192: m2 | D192: 4384 | E192: GSGRSL | F192: 1.75 | G192: 7672 | H192: 0.5 | I192: 3836 | J192: 3836
A193: Freshwater intake | G193: 0 | I193: 0 | J193: 0
A194: Reclaim pumps | G194: 0 | I194: 0 | J194: 0
A195: Outfall & Diffuser | G195: 0 | I195: 0 | J195: 0
A196: Airstrip lighting, navigation, electrician | G196: 0 | I196: 0 | J196: 0
A197: Airstrip lighting, navigation, mechanical | G197: 0 | I197: 0 | J197: 0
A198: Break foundation slabs | B198: total of all buildings | G198: 0 | I198: 0 | J198: 0
A199: RB_004 Roberts Bay Mechanical Shop Complex | B199: Shop relocated to Madrid North area, concrete slab remains | C199: m3 | D199: 144.14616 | E199: CDSL | F199: 275 | G199: 39640.194 | H199: 1 | I199: 39640.194 | J199: 0 | K199: Shop relocated to Madrid North area, concrete slab remains
A200: Consolidate & dump boneyard debris | C200: m3 | E200: =NA() ->  | F200: 0 | G200: 0 | I200: 0 | J200: 0
A201: Other | E201: =NA() ->  | F201: 0 | G201: 0 | I201: 0 | J201: 0
... 234 more rows

Sheet Water Management
A1: Capital Expenditures and Short Term Water Treatment identified in 'Instructions' worksheet | B1: Remove / Level Berms, Water Management , Water Treatment
A3: ACTIVITY/MATERIAL | B3: Notes | C3: Units | D3: Quantity | E3: Cost Code | F3: Unit Cost | G3: Cost | H3: Comments
A4: BREACH WATER PONDS & CONTAINMENT BERMS
A5: Remove/Level Berms
A6: DM_020 Doris Tank Farm | B6: Level Containment Berm | C6: m3 | D6: 90 | E6: SC1H | F6: 12.58011 | G6: =D6*F6 -> 1132.2099 | H6: Added 2023
A7: DM_020 Doris Tank Farm | B7: Excavate and stockpile liner protection cover | C7: m3 | D7: 3360 | E7: SC1L | F7: 9.19836 | G7: =D7*F7 -> 30906.4896
A8: RB_002 Roberts Bay 20 ML Tank Farm | B8: Breach containment berm | C8: m3 | D8: 153.99 | E8: SC1H | F8: 12.58011 | G8: 1937.211139
A9: RB_003 Roberts Bay Quarry 1 - 5 ML Tank Facility | B9: Breach containment berm | C9: m3 | D9: 77.76 | E9: SC1H | F9: 12.58011 | G9: 978.2293536
A10: RB_003 Roberts Bay Quarry 1 - 5 ML Tank Facility | B10: Excavate and stockpile liner protection cover | C10: m3 | D10: 2979.9 | E10: SC1H | F10: 12.58011 | G10: 37487.46979
A11: RB_002 Roberts Bay 20 ML Tank Farm | B11: Excavate and stockpile liner protection cover | C11: m3 | D11: 7923.6 | E11: SC1L | F11: 9.19836 | G11: 72884.1253
A12: RP_003 Reagent Pads Ammonium Nitrate Storage Area | B12: Excavate and stockpile liner protection cover | C12: m3 | D12: 893.16 | E12: SC1H | F12: 12.58011 | G12: 11236.05105
A13: WM_001 Waste Management Area Land Farm | B13: Breach containment berm | C13: m3 | D13: 90 | E13: SC1H | F13: 12.58011 | G13: 1132.2099
A14: WM_001 Waste Management Area Land Farm | B14: Excavate and stockpile liner protection cover | C14: m3 | D14: 2591 | E14: SC1H | F14: 12.58011 | G14: 32595.06501
A15: DM_013 Doris Run-off Diversion Berm | B15: Original ground in several locations (4 locations) to restore natural flow path | C15: m3 | D15: 453.6 | E15: SC1H | F15: 12.58011 | G15: 5706.337896
A16: DM_014 Doris Sedimentation Berm | B16: Breach the berm to restore a free drainage path | C16: m3 | D16: 28.8 | E16: SC1H | F16: 12.58011 | G16: 362.307168
A17: DM_015 Doris Sedimentation/Pollution Control Pond | B17: Breach contact water containment berm | C17: m3 | D17: 3129.84 | E17: SC1L | F17: 9.19836 | G17: 28789.39506
A18: MN_003 Madrid North Contact Water Pond Berm | B18: breach contact water containment berm | C18: m3 | D18: 100 | E18: SC1H | F18: 12.58011 | G18: 1258.011
A19: MN_022 Madrid North Diversion Berm | B19: breach berm to original ground (one location) to restore natural flow paths | C19: m3 | D19: 100 | E19: SC1H | F19: 12.58011 | G19: 1258.011
A20: RP_003 Reagent Pads Ammonium Nitrate Storage Area | B20: Level containment berm | C20: m3 | D20: 31.7 | E20: SC1H | F20: 12.58011 | G20: 398.789487
A22: BREACH DYKE EMBANKMENT
A23: Remove fill | C23: m3 | E23: =NA() ->  | F23: 0 | G23: =D23*F23 -> 0
A24: Contour water intake area | C24: m3 | E24: =NA() ->  | F24: 0 | G24: 0
A25: STABILIZE SEDIMENT PONDS/WATER MANAGEMENT PONDS
A26: Place soil cover | C26: m3 | E26: =NA() ->  | F26: 0 | G26: 0
A27: Doze & spread excavated material | C27: m3 | E27: =NA() ->  | F27: 0 | G27: 0
A28: Vegetate spread material | C28: ha | E28: =NA() ->  | F28: 0 | G28: 0
A29: Rip rap in channel base | C29: each | E29: =NA() ->  | F29: 0 | G29: 0
A30: DM_014 Doris Sedimentation Berm | B30: place erosion control (rip rap) | C30: m3 | D30: 8.64 | E30: RR2L | F30: 19.20834 | G30: 165.9600576 | H30: Added 2023
A31: DM_015 Doris Sedimentation/Pollution Control Pond | B31: place rip rap on sed breach | C31: m3 | D31: 298.08 | E31: RR2L | F31: 19.20834 | G31: 5725.621987 | H31: Added 2023
A32: Backfill
A33: DM_015 Doris Sedimentation/Pollution Control Pond | B33: sedimentation pond backfill | C33: m3 | D33: 1293 | E33: RC4H | F33: 25.97184 | G33: 33581.58912 | H33: Added 2023
A34: DM_018 Sumps | B34: backfill sump excavation | C34: m3 | D34: 50.89380099 | E34: RC4H | F34: 25.97184 | G34: 1321.805656
A35: MN_023 Madrid North Sump | B35: backfill sump excavation | C35: m3 | D35: 67.85840132 | E35: RC4H | F35: 25.97184 | G35: 1762.407542
A36: REDIRECT RUNOFF/CONSTRUCT DIVERSION DITCHES
A37: Excavate ditches -soil | C37: m3 | E37: =NA() ->  | F37: 0 | G37: 0
A38: Excavate ditches -rock | C38: m3 | E38: =NA() ->  | F38: 0 | G38: 0
A39: Stabilize side slopes | C39: m3 | E39: =NA() ->  | F39: 0 | G39: 0
A40: Rip rap in channel base | C40: m3 | E40: =NA() ->  | F40: 0 | G40: 0
A41: BREACH DITCHES
A42: Excavate breaches | C42: m3 | E42: =NA() ->  | F42: 0 | G42: 0
A43: Backfill/recontour | C43: m3 | E43: =NA() ->  | F43: 0 | G43: 0
A44: Install flow dissipation | C44: m3 | E44: =NA() ->  | F44: 0 | G44: 0
A45: Vegetate remainder of ditch | C45: m2 | E45: =NA() ->  | F45: 0 | G45: 0
A46: DECOMISSION FRESH WATER SUPPLY
A47: Breach embankment | C47: m | E47: =NA() ->  | F47: 0 | G47: 0
A48: Remove pump | C48: LS | E48: =NA() ->  | F48: 0 | G48: 0
A49: Remove pipeline | C49: m | E49: =NA() ->  | F49: 0 | G49: 0
A50: WATER CONTROL IN RECLAMATION QUARRY
A51: Install pumping system | C51: LS | E51: =NA() ->  | F51: 0 | G51: 0
A52: Remove pumping system | C52: LS | E52: =NA() ->  | F52: 0 | G52: 0
A53: REMOVE PIPELINES
A54: Remove pipes | C54: m | E54: =NA() ->  | F54: 0 | G54: 0
A55: PL_001 Pipeline Roberts Bay Discharge System | B55: Cut pipelines into manageable pieces | C55: m | D55: 7775.3 | E55: PLRPLL | F55: 12.75 | G55: 99135.075 | H55: As built
A56: MOF_001 Pipeline Roberts Bay Discharge System | B56: Remove rock fill to 0.3 m below LLWL | C56: m3 | D56: 776 | E56: SB2H | F56: 9.87471 | G56: 7662.77496 | H56: Added 2023
A57: DM_006 Doris Fresh Water Pipeline | B57: Cut pipelines into manageable pieces | C57: m | D57: 830 | E57: PSRL | F57: 1.3527 | G57: 1122.741
A58: DM_016 Doris Sewage Discharge Line | B58: Cut pipelines into manageable pieces | C58: m | D58: 1462 | E58: PSRL | F58: 1.3527 | G58: 1977.6474
A59: DM_016 Doris Sewage Discharge Line | B59: Flush pipeline prior to decommissioning | C59: each | D59: 1 | E59: CSEWSH | F59: 900 | G59: 900
A60: SR_002 Secondary Road Tailings and Reclaim Water Pipelines | B60: Cut pipelines into manageable pieces | C60: m | D60: 8069.5 | E60: PLRPLL | F60: 12.75 | G60: 102886.125
A61: Concrete plug deep pipes | C61: m3 | E61: =NA() ->  | F61: 0 | G61: 0
A62: Other | E62: =NA() ->  | F62: 0 | G62: 0
A63: PL_001 Pipeline Roberts Bay Discharge System | B63: Conduct survey of submerged section of pipeline | C63: each | D63: 1 | E63: CSSPLL | F63: 10000 | G63: 10000
A64: GROUNDWATER COLLECTION SYSTEM
A65: Excavate/install sumps | C65: m3 | E65: =NA() ->  | F65: 0 | G65: 0
A66: DM_018 Sumps | B66: decommission sumps | C66: each | D66: 3 | E66: ER7SL | F66: 1250 | G66: 3750
A67: DM_018 Sumps | B67: remove pumps, pipes, cables, culverts | C67: each | D67: 3 | E67: ER7SH | F67: 2500 | G67: 7500
A68: MN_023 Madrid North Sump | B68: decommission sumps | C68: each | D68: 4 | E68: ER7SL | F68: 1250 | G68: 5000
A69: MN_023 Madrid North Sump | B69: remove pumps, pipes, cables, culverts | C69: each | D69: 4 | E69: ER7SH | F69: 2500 | G69: 10000
A70: Install pumping wells | C70: m3 | E70: =NA() ->  | F70: 0 | G70: 0
A71: Install pumps/pipelines/power supply | C71: LS | E71: =NA() ->  | F71: 0 | G71: 0
A72: CONSTRUCT CONTAMINATED WATER STORAGE POND
A73: Excavate pond | C73: m3 | E73: =NA() ->  | F73: 0 | G73: 0
A74: Doze & spread excavated material | C74: m3 | E74: =NA() ->  | F74: 0 | G74: 0
A75: Q2_003 Quarry 2 Treated Sewage Discharge Area | B75: Fill in low-lying areas (assumed sourced within 0.5km) | C75: m3 | D75: 552 | E75: RC4H | F75: 25.97184 | G75: 14336.45568
A76: Vegetate spread material | C76: ha | E76: =NA() ->  | F76: 0 | G76: 0
A77: Bedding layer | C77: m3 | E77: =NA() ->  | F77: 0 | G77: 0
A78: Supply geomembrane | C78: m2 | E78: =NA() ->  | F78: 0 | G78: 0
A79: Install geomembrane | C79: m2 | E79: =NA() ->  | F79: 0 | G79: 0
A80: Erosion protection layer | C80: m3 | E80: =NA() ->  | F80: 0 | G80: 0
A81: Q2_003 Quarry 2 Treated Sewage Discharge Area | B81: erosion protection: Supply and place coconut matting | C81: m2 | D81: 230 | E81: GSGL | F81: 7.778025 | G81: 1788.94575
A82: CONSTRUCT PASSIVE TREATMENT SYSTEM (e.g. Constructed Wetland)
A83: Construct access roads | C83: km | E83: =NA() ->  | F83: 0 | G83: =D83*F83 -> 0
A84: Install HDPE piping system from collection pond | C84: m | E84: =NA() ->  | F84: 0 | G84: 0
A85: Inter-cell flow structures | C85: allow | E85: =NA() ->  | F85: 0 | G85: 0
A86: Install liners | C86: m2 | E86: =NA() ->  | F86: 0 | G86: 0
A87: Install growth media | C87: m3 | E87: =NA() ->  | F87: 0 | G87: 0
A88: Wetland vegetation | C88: ha | E88: =NA() ->  | F88: 0 | G88: 0
A89: CONSTRUCT WATER TREATMENT PLANT
A90: TIA_008 Treat (if Required) and Discharge Water Via Roberts Bay Marine Discharge System | B90: Build treatment plant - Not Required | C90: LS | D90: 0 | E90: TPSH | F90: 20290500 | G90: =D90*F90 -> 0 | H90: Not Required
A91: Build sludge containment facility | C91: LS | E91: =NA() ->  | F91: 0 | G91: 0
A92: SHORT TERM WATER TREATMENT*
A93: Annual water treatment cost, from "Water Treatment" | G93: =D93*F93 -> 0
A94: TIA_008 Treat (if Required) and Discharge Water Via Roberts Bay Marine Discharge System | B94: MDMER Compliance for 2 Years | E94: PCSMPLL | F94: 75000 | G94: 0 | H94: Assume included in Care and Maintenance
A95: Water Treatment | D95: 0 | G95: 0
A96: MN_026 Naartok Crown Pillar Recovery Trench | B96: Treat contained water and discharge | C96: m3 | D96: 0 | E96: TPOL | F96: 0.473445 | G96: 0 | H96: Assume included in Care and Maintenance
A97: TIA_008 Treat (if Required) and Discharge Water Via Roberts Bay Marine Discharge System | B97: Treat contained water and discharge | C97: m3 | D97: 1225000 | E97: TPOL | F97: 0.473445 | G97: 579970.125 | H97: Assume included in Care and Maintenance Takes Care of ~4,000,000 m3
A98: WM_001 Waste Management Area Land Farm | B98: Treat contained water and discharge | C98: LS | D98: 1 | E98: TCWDSL | F98: 10000 | G98: 10000
F99: Total | G99: =SUM(G4:G98)+0.0001 -> 1126649.187
A100: *Note: include water treatment cost from "Water Treatment" worksheet if treatment is considered short term and is not included in a particular component worksheet.

Sheet Water Treatment
A1: Water Treatment | B1: Remove / Level Berms, Water Management , Water Treatment
A3: ACTIVITY/MATERIAL | B3: Notes | C3: Units | D3: Quantity | E3: Cost Code | F3: Unit Cost | G3: Cost
A4: ADDITION OF REAGENTS
A5: H2O2 | C5: kg | E5: =NA() ->  | F5: 0 | G5: =D5*F5 -> 0
A6: lime | C6: kg | E6: =NA() ->  | F6: 0 | G6: 0
A7: ferric sulphate | C7: kg | E7: =NA() ->  | F7: 0 | G7: 0
A8: ferrous sulphate | C8: kg | E8: =NA() ->  | F8: 0 | G8: 0
A9: flocculants | C9: kg | E9: =NA() ->  | F9: 0 | G9: 0
A10: Other | E10: =NA() ->  | F10: 0 | G10: 0
A11: LABOUR AND SUPPLIES
A12: Annual fuel | C12: litres | E12: =NA() ->  | F12: 0 | G12: =D12*F12 -> 0
A13: Annual power | C13: kW-h | E13: =NA() ->  | F13: 0 | G13: 0
A14: Electrician/mechanic to maintain treatment plant | C14: allow | E14: =NA() ->  | F14: 0 | G14: 0
A15: Equipment maintenance and parts | C15: allow | E15: =NA() ->  | F15: 0 | G15: 0
A16: Misc. supplies, hoses, tools | C16: allow | E16: =NA() ->  | F16: 0 | G16: 0
A17: Communications | C17: allow | E17: =NA() ->  | F17: 0 | G17: 0
A18: Other | E18: =NA() ->  | F18: 0 | G18: 0
A19: WATER SAMPLING AND ANALYSES
A20: Sampling equipment | C20: allow | E20: =NA() ->  | F20: 0 | G20: =D20*F20 -> 0
A21: Analyses | C21: allow | E21: =NA() ->  | F21: 0 | G21: =D21*F21 -> 0
A22: Shipping to laboratory | C22: allow | E22: =NA() ->  | F22: 0 | G22: =D22*F22 -> 0
A23: Reporting | C23: allow | E23: =NA() ->  | F23: 0 | G23: =D23*F23 -> 0
A24: Other | E24: =NA() ->  | F24: 0 | G24: =D24*F24 -> 0
A25: SITE ACCESS
A26: Road maintenance (incl. snow removal) | C26: allow | E26: =NA() ->  | F26: 0 | G26: =D26*F26 -> 0
A27: Winter road tariff | C27: allow | E27: =NA() ->  | F27: 0 | G27: =D27*F27 -> 0
A28: Truck rental | C28: allow | E28: =NA() ->  | F28: 0 | G28: =D28*F28 -> 0
A29: Air support | C29: allow | E29: =NA() ->  | F29: 0 | G29: =D29*F29 -> 0
F31: Annual water treatment costs | G31: =SUM(G5:G30)+0.0001 -> 0.0001
A32: Number of years of water treatment | C32: years
F33: Total | G33: =AnnualTreat1Cost*D32 -> 0
A35: Note: Short term water treatment is intended to be included in "Water Management", whereas long term, or post-closure, water treatment is included in
A36: "Post-Closure Monitoring and Maintenance"

Sheet ICM
A1: Interim Care and Maintenance | B1: Two (2) Years of Care and Maintenance and Includes Water Treatment
A3: ACTIVITY/MATERIAL | B3: Notes | C3: Units | D3: Quantity | E3: Cost Code | F3: Unit Cost | G3: Cost | H3: Comments
A4: INTERIM CARE & MAINTENANCE
A5: Tailings Pond Water Management | C5: m3 | D5: 2000000 | E5: TPOL | F5: 0.473445 | G5: =D5*F5 -> 946890
A6: MN_026 Naartok Crown Pillar Recovery Trench | B6: Haul Water from Naartok Crown Pillar Recovery Trench | C6: m3 | D6: 9499.85 | E6: HTLSL | F6: 40 | G6: 379994
A7: extra personnel | C7: Hr | D7: 0 | E7: =NA() ->  | F7: 0 | G7: 0
A8: -on-site caretaker | C8: Hr | D8: 3640 | E8: LAB-USL | F8: 41.9337 | G8: 152638.668
A9: extra personnel | C9: Hr | D9: 0 | E9: =NA() ->  | F9: 0 | G9: 0
A10: -Supervisor | C10: Hr | D10: 3640 | E10: SUPERH | F10: 124.231968 | G10: 452204.3635
A11: -electrician | C11: Hr | D11: 3640 | E11: ELECL | F11: 100.0998 | G11: 364363.272
A12: -mechanic | C12: Hr | D12: 3640 | E12: JOURNEYH | F12: 97.110333 | G12: 353481.6121
A13: -operator | C13: Hr | D13: 7280 | E13: OPERL | F13: 55.4607 | G13: 403753.896
A14: annual fuel | C14: litre | D14: 73000 | E14: FCDH | F14: 1.880253 | G14: 137258.469 | H14: 200L per day
A15: misc. supplies | C15: allow | E15: =NA() ->  | F15: 0 | G15: 0
A16: pick-up truck | C16: Month | D16: 12 | E16: PTRUCKL | F16: 1500 | G16: 18000
A17: small dozer | C17: Month | D17: 12 | E17: DOZERSL | F17: 6655.284 | G17: 79863.408
A18: small excavator | C18: Month | D18: 12 | E18: EXC-SL | F18: 6168.312 | G18: 74019.744
A19: snow machine | C19: Month | D19: 12 | E19: LOAD-SL | F19: 5681.34 | G19: 68176.08
A20: communications | C20: allow | D20: 1 | E20: ALCML | F20: 5000 | G20: 5000
A21: SNP/AEMP water sampling & reporting | C21: each | D21: 1 | E21: SMPLL | F21: 75000 | G21: 75000
A22: geotechnical assessment | C22: each | D22: 1 | E22: GASSL | F22: 45000 | G22: 45000
A23: interim water treatment | C23: each | E23: =NA() ->  | F23: 0 | G23: 0
A24: other | C24: each | E24: =NA() ->  | F24: 0 | G24: 0
F25: Annual Interim C&M Cost | G25: =SUM(G5:G24) -> 3555643.513
A26: Number of years of ICM | C26: years | D26: 2 | F26: Total | G26: =G25*D26 -> 7111287.025

Sheet PostClosure
A1: Post-Closure Monitoring & Maintenance:
A3: ACTIVITY/MATERIAL | B3: Notes | C3: Units | D3: Quantity | E3: Cost Code | F3: Unit Cost | G3: Cost | H3: Comments
A4: MONITORING & INSPECTIONS
A5: Annual geotechnical inspection | B5: Annual for first 3 years, then year 7 and 10 | C5: each | D5: 5 | E5: PCGASSL | F5: 45000 | G5: =D5*F5 -> 225000
A6: Survey inspection | C6: each | E6: =NA() ->  | F6: 0 | G6: 0
A7: Regulatory costs* | B7: Yearly for 10 Years | C7: each | D7: 10 | E7: PCRGLL | F7: 25000 | G7: 250000
A8: Site water monitoring (AEMP and SNP) | C8: each | E8: =NA() ->  | F8: 0 | G8: 0
A9: - Type A Water Licence 2AM-DOH1323 | B9: annual seep sampling first 5 years, then year 7 and 10 | C9: each | D9: 7 | E9: PCSMPLL | F9: 75000 | G9: 525000
A10: - Active closure and flooding | C10: each | E10: =NA() ->  | F10: 0 | G10: 0
A11: - Post pit flooding | C11: each | E11: =NA() ->  | F11: 0 | G11: 0
A12: Air Quality Monitoring Program (AQMP) | C12: each | E12: =NA() ->  | F12: 0 | G12: 0
A13: Wildlife Effects Monitoring Program (WEMP) | C13: each | E13: =NA() ->  | F13: 0 | G13: 0
A14: Vegetation Monitoring | C14: each | E14: =NA() ->  | F14: 0 | G14: 0
A15: Other | E15: =NA() ->  | F15: 0 | G15: 0
A16: COVER MAINTENANCE
A17: Cover Monitoring | B17: Every 2 years for a 10 year period | C17: each | D17: 5 | E17: PCCVRL | F17: 45000 | G17: =D17*F17 -> 225000
A18: Repair erosion - infill gullies | C18: allow | E18: =NA() ->  | F18: 0 | G18: 0
A19: Repair erosion - upgrade diversion ditches | C19: allow | E19: =NA() ->  | F19: 0 | G19: 0
A20: Remove problem vegetation | C20: allow | E20: =NA() ->  | F20: 0 | G20: 0
A21: Repair animal damage | C21: allow | E21: =NA() ->  | F21: 0 | G21: 0
A22: Repair/upgrade access controls | C22: allow | E22: =NA() ->  | F22: 0 | G22: 0
A23: Other | E23: =NA() ->  | F23: 0 | G23: 0
A24: SPILLWAY MAINTENANCE
A25: Repair erosion | C25: m3 | E25: =NA() ->  | F25: 0 | G25: =D25*F25 -> 0
A26: Clear spillway | C26: each | E26: =NA() ->  | F26: 0 | G26: =D26*F26 -> 0
A27: CWTS MAINTENANCE
A28: Maintain flow, restore vegetation | C28: allow | E28: =NA() ->  | F28: 0 | G28: =D28*F28 -> 0
A29: POST-CLOSURE WATER TREATMENT**
A30: Annual water treatment cost, from "Water Treatment" | G30: =IF(Summary!$L$1=Summary!$L$5,D30*F30,IF(#REF!=Summary!$L$4,D30*F30,0)) -> 0
A32: Subtotal, Annual post-closure costs | G32: =(SUM(G5:G31)+0.0001)/PCYears -> 122500
A33: Discount rate for calculation of net present value of post-closure cost, % | E33: 0
A34: Number of years of post-closure activity | E34: 10 | F34: years
A35: Present Value of payment stream | G35: =PV(DiscountRate,PCYears, PCAnnualTotal)*-1 -> 1225000
A37: *Regulatory costs - annual reporting, management plans, progress reports etc.
A38: Include water treatment cost from "Water Treatment" worksheet if treatment is considered long term, such as ARD/ML.

Sheet Mobilization
A1: Mobilization/Demobilization:
A3: ACTIVITY/MATERIAL | B3: Notes | C3: Units | D3: Quantity | E3: Cost Code | F3: Unit Cost | G3: Cost | H3: Comments
A4: MOBILIZE HEAVY EQUIPMENT
A5: Helicopter | C5: each | D5: 1
A6: Dozers | B6: CAT D8 | C6: each | D6: 3 | E6: LEQMBL | F6: 16000 | G6: =D6*F6 -> 48000
A7: Excavators | B7: CAT 330 | C7: each | D7: 1 | E7: LEQMBL | F7: 16000 | G7: 16000
A8: Loader | B8: CAT 980 | C8: each | D8: 3 | E8: LEQMBL | F8: 16000 | G8: 48000
A9: Motor grader | B9: CAT 14H | C9: each | D9: 2 | E9: LEQMBL | F9: 16000 | G9: 32000
A10: Skidder | B10: CAT 242 | C10: each | D10: 2 | E10: LEQMBL | F10: 16000 | G10: 32000
A11: Truck | B11: CAT 720 | C11: each | D11: 3 | E11: LTRKMBL | F11: 8000 | G11: 24000
A12: Tractor Trailer | C12: each | D12: 4 | E12: LTRKMBL | F12: 8000 | G12: 32000
A13: Flatbed truck | B13: 5 tonne | C13: each | D13: 4 | E13: LTRKMBL | F13: 8000 | G13: 32000
A14: Drill | C14: each | D14: 6 | E14: LEQMBL | F14: 16000 | G14: 96000
A15: Drum crusher | C15: each | D15: 1 | E15: LEQMBL | F15: 16000 | G15: 16000
A16: Crane | C16: each | D16: 2 | E16: CRNMBL | F16: 20000 | G16: 40000
A17: Light duty vehicles | B17: F150 | C17: each | D17: 2 | E17: LTRKMBL | F17: 8000 | G17: 16000
A18: Highway Trailers | C18: each | D18: 41 | E18: HTRMBL | F18: 10000 | G18: 410000
A19: Rock Trucks | C19: each | D19: 2 | E19: LTRKMBL | F19: 8000 | G19: 16000
A20: End Dump | C20: each | D20: 10 | E20: LTRKMBL | F20: 8000 | G20: 80000
A21: Demolition shears | C21: each | D21: 3 | E21: LTRKMBL | F21: 8000 | G21: 24000
A22: Aggregate Crushing and Screening Plant | C22: each | D22: 1 | E22: LTRKMBL | F22: 8000 | G22: 8000
A23: Dozers - Load, Unload, Barge on either side | B23: CAT D8 | C23: each | D23: 3 | E23: LEQMBLL | F23: 4000 | G23: 12000
A24: Excavators - Load, Unload, Barge on either side | B24: CAT 330 | C24: each | D24: 1 | E24: LEQMBLL | F24: 4000 | G24: 4000
A25: Loader - Load, Unload, Barge on either side | B25: CAT 980 | C25: each | D25: 3 | E25: LEQMBLL | F25: 4000 | G25: 12000
A26: Motor grader - Load, Unload, Barge on either side | B26: CAT 14H | C26: each | D26: 2 | E26: LEQMBLL | F26: 4000 | G26: 8000
A27: Skidder - Load, Unload, Barge on either side | B27: CAT 242 | C27: each | D27: 2 | E27: LEQMBLL | F27: 4000 | G27: 8000
A28: Truck - Load, Unload, Barge on either side | B28: CAT 720 | C28: each | D28: 3 | E28: LTRKMBLL | F28: 2000 | G28: 6000
A29: Tractor Trailer - Load, Unload, Barge on either side | C29: each | D29: 4 | E29: LTRKMBLL | F29: 2000 | G29: 8000
A30: Flatbed truck - Load, Unload, Barge on either side | B30: 5 tonne | C30: each | D30: 4 | E30: LTRKMBLL | F30: 2000 | G30: 8000
A31: Drill - Load, Unload, Barge on either side | C31: each | D31: 6 | E31: LEQMBLL | F31: 4000 | G31: 24000
A32: Drum crusher - Load, Unload, Barge on either side | C32: each | D32: 1 | E32: LEQMBLL | F32: 4000 | G32: 4000
A33: Crane - Load, Unload, Barge on either side | C33: each | D33: 2 | E33: CRNMBLL | F33: 10000 | G33: 20000
A34: Light duty vehicles - Load, Unload, Barge on either side | B34: F150 | C34: each | D34: 2 | E34: LTRKMBLL | F34: 2000 | G34: 4000
A35: Highway Trailers - Load, Unload, Barge on either side | C35: each | D35: 41 | E35: HTRMBLL | F35: 4000 | G35: 164000
A36: Rock Trucks - Load, Unload, Barge on either side | C36: each | D36: 2 | E36: LTRKMBLL | F36: 2000 | G36: 4000
A37: End Dump - Load, Unload, Barge on either side | C37: each | D37: 10 | E37: LTRKMBLL | F37: 2000 | G37: 20000
A38: Demolition shears - Load, Unload, Barge on either side | C38: each | D38: 3 | E38: LTRKMBLL | F38: 2000 | G38: 6000
A39: Aggregate Crushing and Screening Plant - Load, Unload, Barge on either side | C39: each | D39: 1 | E39: LTRKMBLL | F39: 2000 | G39: 2000
A40: Compactor | C40: each | E40: =NA() ->  | F40: 0 | G40: 0
A41: MOBILIZE MISC. EQUIPMENT
A42: Equipment | B42: tires, spare parts, lubricants, and Demolition Tools | C42: each | D42: 28 | E42: SEAMBL | F42: 15000 | G42: =D42*F42 -> 420000
A43: Welding Equipment | C43: each | D43: 2 | E43: MDEQMBL | F43: 6500 | G43: 13000
A44: Power washer | C44: each | D44: 1 | E44: LEQMBL | F44: 16000 | G44: 16000
A45: Equipment - Load, Unload, Barge on either side | B45: tires, spare parts, lubricants, and Demolition Tools | C45: each | D45: 28 | E45: SEAMBLL | F45: 2500 | G45: 70000
A46: Welding Equipment - Load, Unload, Barge on either side | C46: each | D46: 2 | E46: MDEQMBLL | F46: 8500 | G46: 17000
A47: Power washer - Load, Unload, Barge on either side | C47: each | D47: 1 | E47: LEQMBLL | F47: 4000 | G47: 4000
A48: Pump shipping | C48: each | E48: =NA() ->  | F48: 0 | G48: 0
A49: Pipe shipping | C49: m | E49: =NA() ->  | F49: 0 | G49: 0
A50: Minor tools and equipment | C50: allow | E50: =NA() ->  | F50: 0 | G50: 0
A51: Truck tires | C51: allow | E51: =NA() ->  | F51: 0 | G51: 0
A52: Other | E52: =NA() ->  | F52: 0 | G52: 0
A53: MOBILIZE CAMP
A54: Refurbish Existing Camp | C54: allow | D54: 1 | E54: MCRH | F54: 125000 | G54: =D54*F54 -> 125000
A55: Reclamation activities | C55: allow | E55: =NA() ->  | F55: 0 | G55: =D55*F55 -> 0
A56: Long term reclamation activities (e.g. pump flooding) | C56: allow | E56: =NA() ->  | F56: 0 | G56: =D56*F56 -> 0
A57: MOBILIZE WORKERS
A58: Reclamation activities - transport | C58: each | D58: 516 | E58: FLTRVL | F58: 1250 | G58: =D58*F58 -> 645000
A59: Reclamation activities - travel time | C59: manhours | E59: =NA() ->  | F59: 0 | G59: =D59*F59 -> 0 | H59: Included Above
A60: Long term reclamation activities (e.g. pump flooding) - transport | C60: each | E60: =NA() ->  | F60: 0 | G60: =D60*F60 -> 0
A61: Long term reclamation activities (e.g. pump flooding) - travel time | C61: each | E61: =NA() ->  | F61: 0 | G61: =D61*F61 -> 0
A62: Monitoring Airfare | C62: each | E62: =NA() ->  | F62: 0 | G62: =D62*F62 -> 0
A63: WORKER ACCOMODATIONS
A64: Reclamation activities | C64: manmonths | D64: 482 | E64: WACCOML | F64: 6000 | G64: =D64*F64 -> 2892000
A65: Long term reclamation activities (e.g. pump flooding) | C65: manmonths | E65: =NA() ->  | F65: 0 | G65: =D65*F65 -> 0
A66: MOBILIZE FUEL
A67: Fuel freight - reclamation activities | C67: litre | E67: =NA() ->  | F67: 0 | G67: =D67*F67 -> 0 | H67: Included in Rates
A68: Fuel freight - long term reclamation activities | C68: litre | E68: =NA() ->  | F68: 0 | G68: =D68*F68 -> 0
A69: Fuel freight accommodations | C69: litre | E69: =NA() ->  | F69: 0 | G69: =D69*F69 -> 0
A70: WINTER ROAD
A71: Construction and operation | C71: km | E71: =NA() ->  | F71: 0 | G71: =D71*F71 -> 0 | H71: Assume not Required
A72: Limited winter use | C72: km | E72: =NA() ->  | F72: 0 | G72: =D72*F72 -> 0
A73: Winter road tariff | C73: km | E73: =NA() ->  | F73: 0 | G73: =D73*F73 -> 0
A74: DEMOBILIZE HEAVY EQUIPMENT
A75: Helicopter | C75: each | D75: 1 | G75: =D75*F75 -> 0
A76: Dozers | B76: CAT D8 | C76: each | D76: 3 | E76: LEQMBL | F76: 16000 | G76: 48000
A77: Excavators | B77: CAT 330 | C77: each | D77: 1 | E77: LEQMBL | F77: 16000 | G77: 16000
A78: Loader | B78: CAT 980 | C78: each | D78: 3 | E78: LEQMBL | F78: 16000 | G78: 48000
A79: Motor grader | B79: CAT 14H | C79: each | D79: 2 | E79: LEQMBL | F79: 16000 | G79: 32000
A80: Skidder | B80: CAT 242 | C80: each | D80: 2 | E80: LEQMBL | F80: 16000 | G80: 32000
A81: Truck | B81: CAT 720 | C81: each | D81: 3 | E81: LTRKMBL | F81: 8000 | G81: 24000
A82: Tractor Trailer | C82: each | D82: 4 | E82: LTRKMBL | F82: 8000 | G82: 32000
A83: Flatbed truck | B83: 5 tonne | C83: each | D83: 4 | E83: LTRKMBL | F83: 8000 | G83: 32000
A84: Drill | C84: each | D84: 6 | E84: LEQMBL | F84: 16000 | G84: 96000
A85: Drum crusher | C85: each | D85: 1 | E85: LEQMBL | F85: 16000 | G85: 16000
A86: Crane | C86: each | D86: 2 | E86: CRNMBL | F86: 20000 | G86: 40000
A87: Light duty vehicles | B87: F150 | C87: each | D87: 2 | E87: LTRKMBL | F87: 8000 | G87: 16000
A88: Highway Trailers | C88: each | D88: 41 | E88: HTRMBL | F88: 10000 | G88: 410000
A89: Rock Trucks | C89: each | D89: 2 | E89: LTRKMBL | F89: 8000 | G89: 16000
A90: End Dump | C90: each | D90: 10 | E90: LTRKMBL | F90: 8000 | G90: 80000
A91: Demolition shears | C91: each | D91: 3 | E91: LTRKMBL | F91: 8000 | G91: 24000
A92: Aggregate Crushing and Screening Plant | C92: each | D92: 1 | E92: LTRKMBL | F92: 8000 | G92: 8000
A93: Dozers - Load, Unload, Barge on either side | B93: CAT D8 | C93: each | D93: 3 | E93: LEQMBLL | F93: 4000 | G93: 12000
A94: Excavators - Load, Unload, Barge on either side | B94: CAT 330 | C94: each | D94: 1 | E94: LEQMBLL | F94: 4000 | G94: 4000
A95: Loader - Load, Unload, Barge on either side | B95: CAT 980 | C95: each | D95: 3 | E95: LEQMBLL | F95: 4000 | G95: 12000
A96: Motor grader - Load, Unload, Barge on either side | B96: CAT 14H | C96: each | D96: 2 | E96: LEQMBLL | F96: 4000 | G96: 8000
A97: Skidder - Load, Unload, Barge on either side | B97: CAT 242 | C97: each | D97: 2 | E97: LEQMBLL | F97: 4000 | G97: 8000
A98: Truck - Load, Unload, Barge on either side | B98: CAT 720 | C98: each | D98: 3 | E98: LTRKMBLL | F98: 2000 | G98: 6000
A99: Tractor Trailer - Load, Unload, Barge on either side | C99: each | D99: 4 | E99: LTRKMBLL | F99: 2000 | G99: 8000
A100: Flatbed truck - Load, Unload, Barge on either side | B100: 5 tonne | C100: each | D100: 4 | E100: LTRKMBLL | F100: 2000 | G100: 8000
A101: Drill - Load, Unload, Barge on either side | C101: each | D101: 6 | E101: LEQMBLL | F101: 4000 | G101: 24000
A102: Drum crusher - Load, Unload, Barge on either side | C102: each | D102: 1 | E102: LEQMBLL | F102: 4000 | G102: 4000
A103: Crane - Load, Unload, Barge on either side | C103: each | D103: 2 | E103: CRNMBLL | F103: 10000 | G103: 20000
A104: Light duty vehicles - Load, Unload, Barge on either side | B104: F150 | C104: each | D104: 2 | E104: LTRKMBLL | F104: 2000 | G104: 4000
A105: Highway Trailers - Load, Unload, Barge on either side | C105: each | D105: 41 | E105: HTRMBLL | F105: 4000 | G105: 164000
A106: Rock Trucks - Load, Unload, Barge on either side | C106: each | D106: 2 | E106: LTRKMBLL | F106: 2000 | G106: 4000
A107: End Dump - Load, Unload, Barge on either side | C107: each | D107: 10 | E107: LTRKMBLL | F107: 2000 | G107: 20000
A108: Demolition shears - Load, Unload, Barge on either side | C108: each | D108: 3 | E108: LTRKMBLL | F108: 2000 | G108: 6000
A109: Aggregate Crushing and Screening Plant - Load, Unload, Barge on either side | C109: each | D109: 1 | E109: LTRKMBLL | F109: 2000 | G109: 2000
A110: Compactor | C110: each | E110: =NA() ->  | F110: 0 | G110: 0
A111: DEMOBILIZE MISC. EQUIPMENT
A112: Equipment | B112: tires, spare parts, lubricants, and Demolition Tools | C112: each | D112: 28 | E112: SEAMBL | F112: 15000 | G112: =D112*F112 -> 420000
A113: Welding Equipment | C113: each | D113: 2 | E113: MDEQMBL | F113: 6500 | G113: 13000
A114: Power washer | C114: each | D114: 1 | E114: LEQMBL | F114: 16000 | G114: 16000
A115: Equipment - Load, Unload, Barge on either side | B115: tires, spare parts, lubricants, and Demolition Tools | C115: each | D115: 28 | E115: SEAMBLL | F115: 2500 | G115: 70000
A116: Welding Equipment - Load, Unload, Barge on either side | C116: each | D116: 2 | E116: MDEQMBLL | F116: 8500 | G116: 17000
A117: Power washer - Load, Unload, Barge on either side | C117: each | D117: 1 | E117: LEQMBLL | F117: 4000 | G117: 4000
A118: Pump shipping | C118: each | E118: =NA() ->  | F118: 0 | G118: 0
A119: Pipe shipping | C119: m | E119: =NA() ->  | F119: 0 | G119: 0
A120: Minor tools and equipment | C120: allow | E120: =NA() ->  | F120: 0 | G120: 0
A121: Truck tires | C121: allow | E121: =NA() ->  | F121: 0 | G121: 0
A122: Other | E122: =NA() ->  | F122: 0 | G122: 0
A123: DEMOBILIZE CAMP
C124: allow | E124: =NA() ->  | F124: 0 | G124: =D124*F124 -> 0 | H124: Camp is demolished and abandoned
A125: DEMOBILIZE WORKERS
A126: crew travel time | C126: mandays | D126: 516 | E126: FLTRVL | F126: 1250 | G126: =D126*F126 -> 645000
A127: crew transportation | C127: each | E127: =NA() ->  | F127: 0 | G127: =D127*F127 -> 0 | H127: Included Above
A128: WINTER ROAD
A129: Construction and operation | C129: km | E129: =NA() ->  | F129: 0 | G129: =D129*F129 -> 0 | H129: Assume not Required
A130: Limited winter use | C130: km | E130: =NA() ->  | F130: 0 | G130: =D130*F130 -> 0
A131: Winter road tariff | C131: km | E131: =NA() ->  | F131: 0 | G131: =D131*F131 -> 0
F132: Total | G132: =SUM(G5:G131)+0.0001 -> 7955000

Sheet Estimator
B1: Unit Cost Estimator | D1: 1 | E1: Equipment Productivity Figures and Graphs have been reproduced from Caterpillar Performance Handbook - Edition 42
B2: EXCAVATION | G2: HAUL AND DUMPING | L2: SPREADING/DOZING
B3: Productivity | G3: Productivity | L3: Productivity
B4: Machine | C4: Cat 336EL | G4: Machine | H4: Cat 770 | L4: Machine | M4: Cat D8
B5: bucket capacity | D5: 3.16 | E5: m3 | G5: truck capacity | I5: 25.1 | J5: m3 | L5: Estimate production using example curves provided or | N5: 600 | O5: m3/hr
B6: fill factor | D6: 0.75 | E6: % | G6: fill factor | I6: 0.8 | J6: % | L6: equivalent from other supplier
B7: cycle time | D7: 45 | E7: seconds | L7: Correction factors (see table provided)
B8: operator skill | D8: 0.8 | E8: % | G8: load time | I8: 6 | J8: min. | L8: operator skill | N8: 0.75
B9: machine availability | D9: 0.83 | E9: % | G9: haul distance | I9: 1.5 | J9: km | L9: material type, see table | N9: 0.8
B10: altitude adjustment | D10: 1 | E10: % | G10: average velocity | I10: 20 | J10: km/hr | L10: slot dozing | N10: 1
B11: Hourly productivity | D11: =D5*D6*(60*60/D7)*D8*D9*D10 -> 125.8944 | E11: m3/hr | G11: haul time + return time | I11: =+I9/I10*60*2 -> 9 | J11: min. | L11: side by side dozing | N11: 1
G12: wait time | I12: 0.5 | J12: min. | L12: visibility | N12: 1
G13: dump time | I13: 1 | J13: min. | L13: job efficiency | N13: 0.83
G14: cycle time | I14: =I8+SUM(I11:I13) -> 16.5 | J14: min. | L14: altitude adjustment | N14: 1
G15: machine availability | I15: 0.83 | J15: % | L15: slope adjustment | N15: 1
G16: altitude adjustment | I16: 1 | J16: % | L16: Hourly productivity | N16: =+N5*N8*N9*N10*N11*N12*N13*N14*N15 -> 298.8 | O16: m3/hr
I17: =I14*I15*I16 -> 13.695 | J17: ave. min/cycle
G18: Hourly productivity | I18: =I5*I6*60/I17 -> 87.97371303 | J18: m3/hr
B19: Operating Costs | G19: Operating Costs | L19: Operating Costs
B20: - Contractor | G20: - Contractor | L20: - Contractor
B21: Contractor hourly rate | D21: 180 | E21: $/hr | G21: Contractor hourly rate | I21: 225 | J21: $/hr | L21: Hourly rate - contractor supplied | N21: 260 | O21: $/hr
B22: Excavation cost - contractor rate | D22: =D21/D11 -> 1.429769712 | E22: $/m3 | G22: Haul and Dump - contractor rate | I22: =I21/I18 -> 2.557582171 | J22: $/m3 | L22: Dozing - contractor rate | N22: =N21/N16 -> 0.8701472557 | O22: $/m3
B24: - Owner | G24: - Owner | L24: - Owner
B25: ownership, daily | E25: $/day | G25: ownership, daily | J25: $/day | L25: ownership, daily | O25: $/day
B26: maintenance | E26: $/hr | G26: maintenance | J26: $/hr | L26: maintenance | O26: $/hr
B27: fuel | E27: $/hr | G27: fuel | J27: $/hr | L27: fuel | O27: $/hr
B28: consumables (cutters, tires) | E28: $/hr | G28: consumables (cutters, tires) | J28: $/hr | L28: consumables (cutters, tires) | O28: $/hr
B29: operator | E29: $/hr | G29: operator | J29: $/hr | L29: operator | O29: $/hr
B30: Owner hourly rate | D30: =D25/10+SUM(D26:D29) -> 0 | E30: $/hr | G30: Owner hourly rate | I30: =I25/10+SUM(I26:I29) -> 0 | J30: $/hr | L30: Owner hourly rate | N30: =N25/10+SUM(N26:N29) -> 0
B31: Excavation cost - owner rate | D31: =D30/D11 -> 0 | E31: $/m3 | G31: Haul/Dumping Cost - owner rate | I31: =I30/I18 -> 0 | J31: $/m3 | L31: Spreading/Dozing Cost - owner rate | N31: =N30/N16 -> 0 | O31: $/hr
B32: Excavation cost - select contractor or owner rate (D22 or D31) | E32: $/m3 | G32: Haul/Dumping Cost - select contractor or owner rate (I22 or I31 | J32: $/m3 | L32: Spreading/Dozing Cost - select contractor or owner rate (N22 or N31) | O32: $/m3
B36: Excavator | G36: Trucking | L36: Dozing
C37: Cat 320 | D37: Cat 325B | E37: Cat 375 | H37: Cat 771 D | I37: Cat 777D | J37: Cat 789C
B38: heaped bucket capacity, m3 | C38: 1.5 | D38: 2.2 | E38: 5.4 | G38: Truck capacity - heaped, m3 | H38: 27.5 | I38: 60.5 | J38: 137
D39: Typical Cycle Times (seconds)
B40: easy digging, shallow digging, small swing angle | C40: 16 | D40: 18 | E40: 20
B41: med. to hard digging, rocky soil, swing angle to 90 deg. | C41: 23 | D41: 23 | E41: 25
B42: tough digging, sandstone, caliche, at max. machine depth, swing angle > 120 deg. | C42: 27 | D42: 29 | E42: 35
B44: Material | C44: Fill Factor (% of heaped bucket capacity
B45: Moist loam or sandy clay | D45: 100 - 110
B46: sand and gravel (not till) | D46: 95 - 110
B47: hard tough clay | D47: 80 - 90
B48: rock - will blasted | D48: 60 - 75
B49: rock - poorly blasted | D49: 40 -60
B51: Operator Skill | C51: poor | D51: average | E51: good
B52: Correction factor | C52: 0.6 | D52: 0.75 | E52: 1
B54: Machine availability | C54: poor | D54: average | E54: good
B55: Correction factor | C55: 0.9 | D55: 0.95 | E55: 1
